{"text_format":"1","workbook":"xlsx","n_sheets":6,"sheets":["Ohjeet","Rajaukset","Viherkerroin","Uudet elementit_painotukset","Tulokset","Lisätietoa"],"not_rendered":{"charts":3,"images":2,"macros":1,"external_links":0,"defined_names":2,"comments":1,"pivot_tables":0},"unopened":[],"bounds":{"document_bytes":16777216,"sheet_cells":100000,"rows_first":2000,"rows_last":500,"rows_between":2000,"halvings":0,"cell_chars":16384,"cell_head_chars":4096},"cells_cut":0,"cells_raw":0,"read":"whole","date_system":"1900"}

{"sheet":"Ohjeet","index":0,"n_rows":28,"n_cols":7,"rows_kept":28,"cut":false,"hidden":false,"merged":[[4,6,7,6],[4,4,5,4],[9,4,10,4],[11,1,12,1],[13,1,14,1],[14,4,15,4]]}
[]
[null,"Ohjeet työkalun käyttöön",null,null,"Käsitteet"]
[]
[null,"1) Makrojen hyväksyminen"]
[null,"Työkalu käyttää hyväksi makroja valintanappien toimivuuden takaamiseksi. Avatessasi makron sisältävää työkirjaa Microsoft Office Excelissä, avautuu \"Suojausvaroitus\"-valintaikkuna tai -palkki, jossa tulee valita vaihtoehto: \"Ota makrot/tämä sisältö käyttöön\". Lisätietoja saat Microsoft Office:n Excel-tukisivustolta: http://office.microsoft.com/fi-fi/excel-help/  [29.11.2013]",null,null,"Makro = Visual Basic -ohjelmointikielellä toteutettu pieni ohjelma Excel‐\ntaulukon sisällä",null,"Viheralueiden pakolliset toiminnot = Viheralueelle ominaiset, pakolliset toiminnot, jotka asettavat vaatimuksia ja rajoituksia kasvillisuustyypeille ja pinnoille. Esim. reitit, urheilukentät, oleskelu- ja leikkipaikat, huoltorakennukset sekä katualueiden avoimena pidettävät näkymät"]
[]
[null,"2) Siirtymät sivujen välillä"]
[null,"Näkymän alalaidassa on valintanappeja, jotka mahdollistavat siirtymät välilehtien välillä. Painamalla \"Edellinen\"-nappulaa, pääset edelliselle välilehdelle, ja painaessasi \"Seuraava\"-nappia, voit siirtyä seuraavalle välilehdelle. \"Ohjeet\"-valintanappia painamalla on mahdollista palata tälle välilehdelle kesken analyysin. Luettuasi ohjeen loppuun, paina \"Aloita\"-valintanappia.",null,null,"Rakennusten peittopinta-ala = Rakennusten (mukaan lukien katokset) peittämä maa-ala (m²)"]
[null,"Voit myös siirtyä välilehtien välillä näkymän alalaidassa olevien välilehtikuvakkeiden avulla (\"Ohjeet\", \"Rajaukset\", \"Viherkerroin\", \"Tulokset\")."]
[null,null,null,null,"Kerrosala =rakennuksen kaikkien kerrosten alojen yhteenlaskettu pinta-ala (k-m²)"]
[null,"3) Rajaukset"]
[null,"Rajaukset-välilehdellä määritellään viherkertoimen tavoite- ja minimitasoon vaikuttavat tontin ja ympäröivän alueen ominaispiirteet. Lomakkeen täyttäminen aloitetaan syöttämällä tonttia kuvaavat tiedot seuraavien otsikoiden alle: \"Korttelinumero\", \"Tonttinumero\", \"Tontin pinta-ala, m²\", \"Rakennusten peittopinta-ala tai Viheralueiden pakolliset toiminnot, m²\", \"Kerrosala, k-m²\" sekä \" Viheralueiden pakolliset toiminnot, jotka on toteutettava läpäisemättömänä pintana, m²\". Syötettyjen tietojen perusteella päivittyvät kentät \"Rakennusten peittopinta-ala / Viheralueiden tilaa vievät toiminnot suhteessa tontin pinta-alaan\" (vaikuttaa minimitasoon) ja \"Kerrosalan suhden tontin pinta-alaan\". Kortteli- ja tonttinumerot sekä päivämäärä päivittyvät automaattisesti Viherkerroin- ja Tulokset-välilehdille."]
[null,null,null,null,"Tavoitetaso = Viherkertoimen taso, johon Viherkerroin-taulukkoa täyttäessä pyritään. Määrittyy automaattisesti maankäytön mukaan."]
[null,"Seuraavaksi täytetään tontin ja ympäröivän alueen ominaispiirteitä kuvaavat 9 rajausta valitsevalla sopivin Vastaus-kohdista. Valintojen perusteella muodostuvat tontin \"Tavoitetaso\" ja \"Minimitaso\" sekä \"Elementtikohtaiset minimitasot\", jotka sisältävät tontilta mahdollisesti vaadittavat elementtityypit (esim. hulevesirakenne, säilytettävä elementti). Nämä tiedot tulee huomioida viherkertoimen laskennassa. "]
[null,null,null,null,"Minimitaso = Taso, joka viherkertoimen on vähintään täytettävä. Määrittyy maankäytön ja aluekohtaisten erityispiirteiden perusteella."]
[null,"4) Viherkerroinlaskenta"]
[null,"Viherkerroin-välilehdellä täytetään tontille kaavaillut elementit: säilytettävä kasvillisuus ja maaperä, istutettava ja kylvettävä kasvillisuus, käytettävät pinnoitteet ja hulevesienhallintarakenteet sekä (edellä mainittujen elementtityyppien kanssa osittain päällekkäiset) bonuselementit. "]
[null,"\"Elementin määritelmä\" -sarake sisältää kuvauksen kustakin elementistä. Lisätietoa elementeistä (kasvualustan syvyys, painotuksen muodostuminen) saa painamalla \"Lisätietoa\"-valintanappia elementtityyppi-sarakkeessa, jolloin \"Lisätietoa\"-välilehti aukeaa. Takaisin Viherkerroin-välilehdelle pääsee \"Takaisin\"-nappulaa painamalla."]
[null,"\"Pinta-ala tai lukumäärä\" -sarakkeeseen syötetään elementtejä koskevat määrätiedot \"Yksikkö\"-sarakkeen kertomassa muodossa (kpl, m²). Muut tiedot päivittyvät välilehdelle automaattisesti. "]
[null,"\"Painotus\"-sarakkeessa näkyy kullekin elementille määritetty painotus. \"Painotettu pinta-ala, m²\" -sarakkeeseen muodostuu syötetyn pinta-alan tai lukumäärän ja painotuksen tulo huomioiden esimerkiksi puille määritetyn keskimääräisen latvuspinta-alan, jonka saa esiin \"Elementin määritelmä\" -sarakkeen lisätieto-kommenteista."]
[null,"Välilehden vasempaan yläkulmaan päivittyy automaattisesti yhteenlasketun painotetun pinta-alan ja tontin kokonaispinta-alan perusteella laskettu \"Viherkerroin\". "]
[null,"Mikäli haluat aloittaa Viherkerroin-laskennan alusta, \"Tyhjennä\"-valintanappi tyhjentää kaikki \"Pinta-ala tai lukumäärä\" -sarakkeeseen syöttämäsi tiedot. "]
[]
[null,"5) Tulokset"]
[null,"Tulokset-välilehdellä ovat viherkertoimen laskennasta saadut tulokset. \"Elementtikohtaiset minimitasot täytetty\" -kohta kertoo, onko tontilta mahdollisesti  vaaditut elementit sisällytetty laskentaan (kyllä, ei). Kuvaajat ja taulukot kertovat viherkertoimen muodostumiseen vaikuttavista tekijöistä ja erilaisten elementtien hyödyntämisasteesta. Kuvaaja \"Eri osa-alueiden painoarvo viherkertoimessa, %\" kertoo elementtien painotuksessa huomioitujen osa-alueiden (ekologisuus, toiminnallisuus, maisema-arvo, kunnossapito) suhteellisen merkityksen viherkertoimessa."]
[null,"Kohdassa \"Täyttäjän kommentit\" on mahdollista lisätä kommentteja laskennasta omaksi tiedoksi tai muiden tulosten tarkastelijoiden käyttöön."]
[]
[null,"Luettuasi ohjeen loppuun, paina \"Aloita\"-valintanappia tai siirry haluamallesi välilehdelle alalaidassa olevien välilehtikuvakkeiden avulla."]

{"sheet":"Rajaukset","index":1,"n_rows":216,"n_cols":11,"rows_kept":216,"cut":false,"hidden":false,"merged":[[200,3,200,7],[177,3,179,3],[180,3,182,3],[20,3,20,4],[21,3,21,4],[22,3,22,4],[25,7,26,7],[27,3,27,4],[25,3,25,4],[26,3,26,4],[23,3,23,4],[24,3,24,4],[8,1,11,1],[7,3,7,4],[8,3,8,4],[8,2,15,2],[9,3,9,4],[10,3,10,4],[11,3,11,4],[12,3,12,4],[13,3,13,4],[12,1,15,1],[14,3,14,4],[15,3,15,4],[16,7,17,7],[19,7,20,7],[17,8,18,8],[20,8,21,8],[17,3,17,4],[18,3,18,4],[19,3,19,4],[17,1,19,1],[20,1,22,1],[17,2,19,2],[20,2,22,2],[16,3,16,4]]}
[]
[null,"Päivämäärä",null,null,null,null,null,"Tavoitetaso"]
[null,{"$f":"TODAY()","v":"2014-12-22"},null,null,null,null,null,{"$f":"OFFSET(C200,0,E202)","v":5}]
[null,null,null,null,null,null,null,"Minimitaso"]
[null,null,null,null,null,null,null,{"$f":"OFFSET(C199,0,E202)","v":{"$error":"#DIV/0!"}}]
[null,null,null,null,null,null,null,"Elementtikohtaiset minimitasot"]
[null,null,null,null,null,null,null,{"$f":"H207","v":"Vähintään 1 hulevesirakenne"}]
[null,"Rajaukset","Nro","Kysymys",null,"Vastaus",null,{"$f":"H209","v":"-"}]
[null,"Viheraluetyyppi","1","Metsäiset viheralueet",null,null,null,"Korttelinumero"]
[null,null,null,"Avoimet viheralueet"]
[null,null,null,"Rakennetut viheralueet, puutarhat ja viljelysalueet",null,null,null,"Tonttinumero"]
[null,null,null,"Muut alueet, joilla usein kasvillisuutta (esim. urheilualueet, katualueet, matonpesupaikat, koirien ulkoilutusalueet)"]
[null,"Rakennetun alueen tyyppi",null,"Asuinalueet",null,null,null,"Tontin pinta-ala, m²"]
[null,null,null,"Palvelujen alueet"]
[null,null,null,"Kaupan- ja liikerakentamisen alueet",null,null,null,"Rakennusten kerrosala, k-m²"]
[null,null,null,"Teollisuustoimintojen ja logistiikan alueet"]
[null,"Korttelityyppi",2,"Onko kyseessä umpikortteli?",null,null,null,"Rakennusten peittopinta-ala tai Viheralueiden pakolliset toiminnot (reitit, urheilukentät, rakennukset jne) m²"]
[null,"Kansipihan osuus tontista",3,"Alle 25 % (ei vaikutusta)",null,null,null,null,{"$f":"IF(H19>H14,\"Huom. Pinta-ala ei voi olla suurempi kuin Tontin pinta-ala\",\" \")","v":" "}]
[null,null,null,"25-75 %"]
[null,null,null,"Yli 75 %",null,null,null," Viheralueiden pakolliset toiminnot, jotka on toteutettava läpäisemättömänä pintana (esim.betoni/asvaltti), m2"]
[null,"Säilytettävissä oleva alkuperäinen kasvillisuus, maaperä tai vesialue",4,"Alle 25 % (täyttömaa / pilaantunut maa / huonokuntoinen kasvillisuus)",null,null,null,null,{"$f":"IF(H22>H19,\"Huom. Pinta-ala ei voi olla suurempi kuin Viheralueiden pakolliset toiminnot\",\" \")","v":" "}]
[null,null,null,"25-50 %"]
[null,null,null,"Yli 50 %"]
[null,"Maaperä / pohjavesi",5,"Onko läpäisemätön maaperä/pohjavesi keskimäärin vähintään 100 cm maanpinnan alapuolella?             ",null,null,null,"Rakennusten kerrosalan suhde tontin pinta-alaan"]
[null,"Maastonmuodot",6,"Mahdollistavatko maastonmuodot hulevesienhallintaratkaisujen rakentamisen?",null,null,null,{"$f":"H16/H14","v":{"$error":"#DIV/0!"}}]
[null,"Viemäriverkosto",7,"Onko tontilla mahdollisuutta liittyä erillisviemäröintiin?",null,null,null,"Rakennusten peittopinta-ala / Viheralueiden tilaa vievät toiminnot suhteessa tontin pinta-alaan"]
[null,"Ympäröivät alueet",8,"Onko ≤ 50 m etäisyydellä tontista luonnonsuojelualuetta/vesistöä/luonnonkasvillisuudesta koostuvaa viherkäytävää?"]
[null,"Energiaratkaisut",9,"Onko tontilla tilaa vieviä uusiutuvan energian tuotantoratkaisuja (esim. aurinkopaneeli, pientuulivoimala)?",null,null,null,{"$f":"H19/H14","v":{"$error":"#DIV/0!"}}]
[]
[]
[]
[]
[]
[]
[]
[]
[]
[]
[]
[]
[]
[]
[]
[]
[]
[]
[]
[]
[]
[]
[]
[]
[]
[]
[]
[]
[]
[]
[]
[]
[]
[]
[]
[]
[]
[]
[]
[]
[]
[]
[]
[]
[]
[]
[]
[]
[]
[]
[]
[]
[]
[]
[]
[]
[]
[]
[]
[]
[]
[]
[]
[]
[]
[]
[]
[]
[]
[]
[]
[]
[]
[]
[]
[]
[]
[]
[]
[]
[]
[]
[]
[]
[]
[]
[]
[]
[]
[]
[]
[]
[]
[]
[]
[]
[]
[]
[]
[]
[]
[]
[]
[]
[]
[]
[]
[]
[]
[]
[]
[]
[]
[]
[]
[]
[]
[]
[]
[]
[]
[]
[]
[]
[]
[]
[]
[]
[]
[]
[]
[]
[]
[]
[]
[]
[]
[]
[null,null,null,null,"Viherkerroinluokka","Tavoitetaso","Ehdoton minimitaso","Max vähennys tavoitetasosta"]
[null,null,null,1,"Asuinalueet",1.1000000000000001,{"$f":"F168-H168","v":0.8},0.3]
[null,null,null,2,"Palvelujen alueet",1,{"$f":"F169-H169","v":0.7},0.3]
[null,null,null,3,"Kaupan ja liikerakentamisen alueet",0.9,0.60000000000000009,0.3]
[null,null,null,4,"Teollisuustoimintojen ja logistiikan alueet",0.8,0.5,0.3]
[null,null,null,1,"Metsäiset viheralueet",5,4,{"$f":"F172-G172","v":1}]
[null,null,null,2,"Avoimet viheralueet",3.2,2,{"$f":"F173-G173","v":1.2000000000000002}]
[null,null,null,3,"Rakennetut viheralueet, puutarhat ja viljelysalueet",3,2,1]
[null,null,null,4,"Muut alueet, joilla voi olla kasvillisuutta",2.6,1,1.6]
[]
[null,null,null,null,"Rajoittava tekijä tontilla","Minimitaso","Vaikutus minimitasoon"]
[null,null,null,"Peittopinta-ala/ viheralueiden toiminnot","< 0,4 (ei rajoituksia)",{"$f":"OFFSET($C$200,0,$E$202)+(G178)","v":5},0]
[null,null,null,null,"0,4-0,7",4.9000000000000004,-0.1]
[null,null,null,null,"0,7 <",4.8,-0.2]
[null,null,null,"Viheralueiden toiminnot, läpäisemätön / koko tontti","< 0,4 (ei rajoituksia)",5,0]
[null,null,null,null,"0,4-0,7",4,-1]
[null,null,null,null,"0,7 <",3,-2]
[null,null,null,null,"Umpikortteli",4.9000000000000004,-0.1]
[null,null,null,null,"Kansipihaa < 25%-",5,0]
[null,null,null,null,"Kansipihaa 25%-75%",4.9000000000000004,-0.1]
[null,null,null,null,"Kansipihaa > 75%",4.8,-0.2]
[null,null,null,null,"Säilytettävissä oleva kasv. /maa <25 %",4.8,-0.2]
[null,null,null,null,"Säilytettävissä oleva kasv. /maa 25 - 50 %",4.9000000000000004,-0.1]
[null,null,null,null,"Säilytettävissä oleva kasv. /maa yli 50 %",5,0]
[null,null,null,null,"Erillisviemäröinti",5,0,"Vähintään 1 hulevesirakenne"]
[null,null,null,null,"Suojelualueet/viherkäytävät/vesistöt",5,0,"Vähintään 1 säilytettävä elementti "]
[null,null,null,null,"Maaperä/pohjavesi",4.8,-0.2]
[null,null,null,null,"Energiantuotanto",4.9000000000000004,-0.1]
[]
[null,null,"TAVOITE- JA MINIMITASOJEN LASKENTA"]
[null,null,null,"asuin","palvelu","kaupan","teoll","Metsä","Avoin","Rakennetut","Muut "]
[null,null,"Rajoitusten jälkeen",{"$f":"$F$168+$H$214","v":{"$error":"#DIV/0!"}},{"$f":"$F$169+$H$214","v":{"$error":"#DIV/0!"}},{"$f":"$F$170+$H$214","v":{"$error":"#DIV/0!"}},{"$f":"$F$171+$H$214","v":{"$error":"#DIV/0!"}},{"$f":"$F$172+$H$216","v":{"$error":"#DIV/0!"}},{"$f":"$F$173+$H$216","v":{"$error":"#DIV/0!"}},{"$f":"$F$174+$H$216","v":{"$error":"#DIV/0!"}},{"$f":"$F$175+$H$216","v":{"$error":"#DIV/0!"}}]
[null,null,"Minimitaso",{"$f":"IF(D198<$G$168,$G$168,D198)","v":{"$error":"#DIV/0!"}},{"$f":"IF(E198<$G$169,$G$169,E198)","v":{"$error":"#DIV/0!"}},{"$f":"IF(F198<$G$170,$G$170,F198)","v":{"$error":"#DIV/0!"}},{"$f":"IF(G198<$G$171,$G$171,G198)","v":{"$error":"#DIV/0!"}},{"$f":"IF(H198<$G$172,$G$172,H198)","v":{"$error":"#DIV/0!"}},{"$f":"IF(I198<$G$173,$G$173,I198)","v":{"$error":"#DIV/0!"}},{"$f":"IF(J198<$G$174,$G$174,J198)","v":{"$error":"#DIV/0!"}},{"$f":"IF(K198<$G$175,$G$175,K198)","v":{"$error":"#DIV/0!"}}]
[null,null,"Tavoitetaso:",{"$f":"F168","v":1.1000000000000001},{"$f":"F169","v":1},{"$f":"F170","v":0.9},{"$f":"F171","v":0.8},{"$f":"F172","v":5},{"$f":"F173","v":3.2},{"$f":"F174","v":3},{"$f":"F175","v":2.6}]
[null,null,"Vastaus","Rajoitukset"]
[null,null,"1","Viheralue/rakennustyyppi (1-4 rakennetut; 5-8 viheralueet)",5]
[null,null,2,"Umpikortteli",2,{"$f":"IF(E203=1,$G$184,$G$178)","v":0},null,{"$f":"SUM(F203:G203)","v":0}]
[null,null,3,"Kansipiha",1,{"$f":"IF(E204=2,$G$186,0)","v":0},{"$f":"IF(E204=3,$G$187,0)","v":0},{"$f":"SUM(F204:G204)","v":0}]
[null,null,4,"Säilytettävissä oleva kasv./maaperä",3,{"$f":"IF(E205=1,G188,0)","v":0},{"$f":"IF(E205=2,G189,0)","v":0},{"$f":"SUM(F205:G205)","v":0}]
[null,null,5,"Maaperä / pohjavesi",1,{"$f":"IF(E206=2,$G$193,0)","v":0},null,{"$f":"SUM(F206:G206)","v":0}]
[null,null,6,"Maastonmuodot",1,{"$f":"IF(E207=2,2,1)","v":1},{"$f":"IF(OR(F207=2,E204>1),\"-\",$H$191)","v":"Vähintään 1 hulevesirakenne"},{"$f":"G207","v":"Vähintään 1 hulevesirakenne"}]
[null,null,7,"Erillisviemäröinti",1]
[null,null,8,"Suojelualueet jne",2,{"$f":"IF(OR(E203=1,E204>1),2,1)","v":1},{"$f":"IF(AND(E209=1,F209=1),$H$192,\"-\")","v":"-"},{"$f":"G209","v":"-"}]
[null,null,9,"Energiaratkaisut",2,{"$f":"IF(E210=1,$G$194,0)","v":0},null,{"$f":"SUM(F210:G210)","v":0}]
[null,null,null,"Rakennusten peittopinta-ala/viheralueiden toiminnot (1=<0,4,;2 = 0,4-0,7; 3 =>0,7",{"$f":"IF(H28<0.4,1,IF(H28<=0.7,2,3))","v":{"$error":"#DIV/0!"}},{"$f":"IF(E211=2,$G$179,$G$178)","v":{"$error":"#DIV/0!"}},{"$f":"IF(E211=3,$G$180,$G$178)","v":{"$error":"#DIV/0!"}},{"$f":"SUM(F211:G211)","v":{"$error":"#DIV/0!"}}]
[null,null,null,"Toiminnot, jotka on toteutettava läpäisemättömänä - suhde tontin pinta-alaan",{"$f":"H22/H14","v":{"$error":"#DIV/0!"}},{"$f":"IF((E212)>0.7,G183,0)","v":{"$error":"#DIV/0!"}},{"$f":"IF(AND(E212>=0.4,E212<=0.7),G182,0)","v":{"$error":"#DIV/0!"}},{"$f":"IF(SUM(F212:G212)=0,0,SUM(F212:G212))","v":{"$error":"#DIV/0!"}}]
[null,null,null,null,null,null,null,"Rajoitukset, rakennettu"]
[null,null,null,null,null,null,null,{"$f":"SUM(H203:H211)","v":{"$error":"#DIV/0!"}}]
[null,null,null,null,null,null,null,"Rajoitukset, viheralue"]
[null,null,null,null,null,null,null,{"$f":"SUM(H205:H212)","v":{"$error":"#DIV/0!"}}]

{"sheet":"Viherkerroin","index":2,"n_rows":48,"n_cols":8,"rows_kept":48,"cut":false,"hidden":false,"merged":[[20,2,21,2],[1,2,7,2],[8,2,19,2],[22,2,28,2],[29,2,47,2]]}
["Viherkerroin",null,"Elementti-tyyppi","Elementin määritelmä","Yksikkö","Pinta-ala tai lukumäärä","Painotus","Painotettu pinta-ala, m²"]
[{"$f":"A13/A11","v":{"$error":"#DIV/0!"}},null,"Säilytettävä kasvillisuus ja maaperä","Säilytettävä hyväkuntoinen isokokoinen (täysikasvuisena > 10 m) puu, vähintään 3 m  (à 25 m²)","kpl",null,3.5874999999999999,{"$f":"F2*25*G2","v":0}]
["Tavoitetaso",null,null,"Säilytettävä hyväkuntoinen, pienikokoinen (täysikasvuisena ≤ 10 m) puu, vähintään 3 m  (à 15 m²)","kpl",null,3.2124999999999999,{"$f":"F3*15*G3","v":0}]
[{"$f":"Rajaukset!H3","v":5},null,null,"Säilytettävä hyväkuntoinen puu (1,5-3 m) tai iso pensas  (à 3 m²)","kpl",null,2.5,{"$f":"F4*3*G4","v":0}]
["Minimitaso",null,null,"Säilytettävä luonnonniitty tai luonnonmukainen pohjakasvillisuus","m²",null,2.2875000000000001,{"$f":"F5*G5","v":0}]
[{"$f":"Rajaukset!H5","v":{"$error":"#DIV/0!"}},null,null,"Alueelle siirrettävä alkuperäinen, hyväkuntoinen pohjakasvillisuus ","m²",null,1.9625000000000001,0]
["Elementtikohtaiset minimitasot",null,null,"Alkuperäinen kosteikko, lampi tai painanne","m²",null,3.0375000000000001,0]
[{"$f":"Rajaukset!H7","v":"Vähintään 1 hulevesirakenne"},null,null,"Säilytettävä luonnonmukainen avokallio (ainakin osittain paljas kalliopinta, vähäisesti puustoa)","m²",null,2.6749999999999998,0]
[{"$f":"Rajaukset!H8","v":"-"},null,"Istutettava / kylvettävä kasvillisuus","Isokokoinen puu, täysikasvuisena > 10 m  (à 25 m²)","kpl",null,2.8374999999999999,{"$f":"F9*25*G9","v":0}]
["Tontin pinta-ala, m²",null,null,"Pienikokoinen puu, täysikasvuisena ≤ 10 m  (à 15 m²)","kpl",null,2.375,{"$f":"F10*15*G10","v":0}]
[{"$f":"Rajaukset!H14","v":0},null,null,"Isot pensaat  (à 3 m²)","kpl",null,1.7500000000000002,{"$f":"F11*3*G11","v":0}]
["Painotettu pinta-ala yht., m²",null,null,"Muut pensaat  ","m²",null,1.5875000000000001,0]
[{"$f":"SUM(H2:H48)","v":0},null,null,"Perennat","m²",null,1.5875000000000001,0]
[null,null,null,"Niitty tai keto","m²",null,1.9874999999999998,0]
[null,null,null,"Viljelypalstat ","m²",null,2.5124999999999997,0]
[null,null,null,"Nurmikko","m²",null,1.1375,0]
[null,null,null,"Viherkatot ( > 0,3 m)","m²",null,1.8,0]
[null,null,null,"Viherkatot (0,05 - 0,3 m)","m²",null,1.3374999999999999,0]
[null,null,null,"Monivuotiset köynnökset  (à 2 m²)","kpl",null,1.5875000000000001,{"$f":"F19*2*G19","v":0}]
[null,null,null,"Viherseinä, vertikaalinen pinta-ala","m²",null,1.1000000000000001,0]
[null,null,"Pinnoitteet","Puoliläpäisevät pinnoitteet (esim. nurmikivi)","m²",null,1.0874999999999999,{"$f":"F21*G21","v":0}]
[null,null,null,"Läpäisevät pinnoitteet (esim. sora- ja hiekkapinnat, kivituhka)","m²",null,1.7375,0]
[null,null,"Hulevesien hallinta-rakenteet","Sadepuutarha (biosuodatusalue,ei pysyvää vesipintaa), jossa monipuolista ja kerroksellista kasvillisuutta","m²",null,2.5875000000000004,0]
[null,null,null,"Hulevesilammikko pysyvällä vesipinnalla (huolehdittava, että vesi vaihtuu/kiertää)","m²",null,3.125,0]
[null,null,null,"Imeytyspainanne kasvillisuus- tai kiviainespinnalla (ei pysyvää vesipintaa, läpäisevä maaperä)","m²",null,1.95,0]
[null,null,null,"Imeytyskaivanto (maanalainen)","m²",null,1.5625,0]
[null,null,null,"Kosteikko tai tulvaniitty luonnonmukaisella kasvillisuudella (ainakin osan vuodesta pysyvä vesipinta; muun ajan maa pysyy kosteana)","m²",null,2.7375000000000003,0]
[null,null,null,"Viivytyspainanne kasvillisuus- tai kiviainespinnalla (ei pysyvää vesipintaa)","m²",null,1.7875000000000001,0]
[null,null,null,"Viivytyskaivanto tai -säiliö (maanalainen)","m²",null,1.4000000000000001,0]
[null,null,"Bonus-elementit (Huom. Samasta elementistä vain kertaalleen bonuspisteitä)","Hulevesien kerääminen läpäisemättömiltä pinnoilta kasteluvedeksi tai ohjaaminen hallitusti läpäisevälle kasvillisuudelle maassa","m²",null,0.7,{"$f":"F30*G30","v":0}]
[null,null,null,"Hulevesien ohjaaminen läpäisemättömiltä pinnoilta rakennettuihin vesiaiheisiin, kuten lampiin ja puroihin, joissa vesi vaihtuu/kiertää","m²",null,0.87499999999999989,{"$f":"F31*G31","v":0}]
[null,null,null,"Jalopuut ja metsähaapa, istutettava tai säilytettävä isokokoinen puu (à 25 m²)","kpl",null,1.0374999999999999,{"$f":"F32*25*G32","v":0}]
[null,null,null,"Havupuut, istutettava tai säilytettävä isokokoinen puu (à 25 m²)","kpl",null,1.0874999999999999,{"$f":"F33*25*G33","v":0}]
[null,null,null,"Havupuut, istutettava tai säilytettävä pienikokoinen puu (à 15 m²)","kpl",null,1.0874999999999999,{"$f":"F34*15*G34","v":0}]
[null,null,null,"Varjostava isokokoinen puu (à 25 m²) rakennuksen etelä- ja lounaispuolella (erityisesti lehtipuut) ","kpl",null,1.0874999999999999,{"$f":"F35*25*G35","v":0}]
[null,null,null,"Varjostava pienikokoinen puu (à 15 m²) rakennuksen etelä- ja lounaispuolella (erityisesti lehtipuut) ","kpl",null,1.0874999999999999,{"$f":"F36*15*G36","v":0}]
[null,null,null,"Viljelyyn soveltuvat hedelmäpuut (à 15 m²) ","kpl",null,1.0875000000000001,{"$f":"F37*15*G37","v":0}]
[null,null,null,"Viljelyyn soveltuvat marjapensaat (à 3 m²)","kpl",null,1.0875000000000001,{"$f":"F38*3*G38","v":0}]
["Päivämäärä",null,null,"Valikoima alueella luontaisesti esiintyviä lajeja- väh. 5 lajia/100 m²","m²",null,1.0374999999999999,{"$f":"F39*G39","v":0}]
[{"$f":"Rajaukset!B3","v":"2014-12-22"},null,null,"Hyvinkäälle ominaiset puulajit ja kukkivat puut ja pensaat - väh. 3 lajia/100 m²","m²",null,1.0374999999999999,{"$f":"F40*G40","v":0}]
["Korttelinumero",null,null,"Kosteikoille ja ranta-alueille soveltuvat, hulevesiä sitovat ja suodattavat luonnonkasvit","m²",null,0.78749999999999998,0]
[{"$f":"IF(Rajaukset!H10>0,Rajaukset!H10,\"-\")","v":"-"},null,null,"Perhosniityt","m²",null,1.0875000000000001,0]
["Tonttinumero",null,null,"Näyttävästi kukkivat/tuoksuvat istutukset","m²",null,0.92499999999999993,0]
[{"$f":"IF(Rajaukset!H12>0,Rajaukset!H12,\"-\")","v":"-"},null,null,"Viljelylaatikot","m²",null,0.83750000000000002,0]
[null,null,null,"Leikkimiseen tai urheiluun osoitettu läpäisevä pinta (esim. hiekka- tai sorapintaiset leikkipaikat, urheilukenttänurmi)","m²",null,0.58750000000000002,0]
[null,null,null,"Yhteiskäytössä olevat kattoterassit, joissa kasvillisuutta vähintään 10 % pinta-alasta","m²",null,0.67500000000000004,0]
[null,null,null,"Säilytettävä kuollut maapuu/kanto  (à 5 m²)","kpl",null,1.25,{"$f":"F47*5*G47","v":0}]
[null,null,null,"Linnunpöntöt  (à 2 m²)","kpl",null,0.86250000000000004,{"$f":"F48*2*G48","v":0}]

{"sheet":"Uudet elementit_painotukset","index":3,"n_rows":68,"n_cols":56,"rows_kept":68,"cut":false,"hidden":true,"merged":[[20,0,21,0],[0,47,0,48],[2,47,4,47],[2,48,4,48],[5,47,7,47],[5,48,7,48],[11,47,12,47],[0,2,0,3],[0,4,0,5],[0,6,0,7],[0,8,0,9]]}
["Elementtityypit","Elementit","Ekologisuus",null,"Toiminnallisuus",null,"Maisema-arvo",null,"Kunnossapito",null,"Painotettu keskiarvo","Painotettu pinta-ala",null,"Asteikko (Ekologisuus, toiminnallisuus, maisema-arvo - Huom. Bonuselementeillä maksimipistemäärä 1)",null,null,null,null,null,null,null,null,null,null,null,null,null,null,null,null,null,null,null,null,null,"Ekologisuus","Toiminnallisuus","Maisema-arvo","Kunnossapito","Yhteensä, %",null,"Ekologisuus","Toiminnallisuus","Maisema-arvo","Kunnossapito","Yhteensä, %",null,"Asiantuntijahaastatteluista laskettu yleinen painotus osa-alueille",null,null,null,null,null,null,null,"Lkm täytetty"]
["Säilytettävä kasvillisuus ja maaperä","Säilytettävä hyväkuntoinen isokokoinen (täysikasvuisena > 10 m) puu; vähintään 3 m (à 25 m²), säilytettävä kasvualusta 25 m²","Vakiintuneella, täysikasvuisena suuren koon saavuttavalla, puulla on erittäin suuri merkitys hulevesien hallinnalle juuriston sitoman maaveden ja latvuston varastoiman sadeveden (interseptiohaihdunnan) ansiosta (11). Lisäksi  pitkäikäisyyden ja suuren biomassan ansiosta erittäin suuri merkitys hiilensidonnalle ja -varastoinnille. Erityisesti avointa maisemaa hallitsevat, suuret yksittäiset puut ja puuryhmät ovat tärkeä luontotyyppi (4,13). Ns. säästöpuiden jättäminen on metsätaloudessa havaittu merkittäväksi keinoksi säilyttää elinympäristöjä hakkuiden välillä (6-8), huomioiden kuitenkin, että vain osa lajeista kykenee hyödyntämään niitä. Huom. Syväjuuriset, metsässä kasvaneet puut (esim. mänty) sopeutuvat paremmin yksittäispuiksi kuin pintajuuriset puut (esim. kuusi), jotka usein ränsistyvät joutuessaan erilaisiin kasvuoloihin. ",3,"Vakiintuneella, täysikasvuisena suuren koon saavuttavalla, puulla on erittäin suuri merkitys pienilmaston tasaamiselle ja puhdistamiselle sekä näkösuojana toimimiselle (etenkin, jos kyseessä havupuu)(11). Puusto voi suojata myös jonkin verran melulta (1), joskin vaikutus onkin enimmäkseen psykologinen (näkösuoja vähentää melun häiritsevyyttä). Merkittävä myös toiminnallisuuden kannalta, esim. virkistyskäyttö ja luonnosta oppiminen (9). Hyväkuntoisen puun säilyttämisessä ei ole turvallisuusriskejä, mikäli puun juuriston ja rungon suojauksesta huolehditaan rakennusvaiheessa. Huom. Syväjuuriset, metsässä kasvaneet puut (esim. mänty) sopeutuvat paremmin yksittäispuiksi kuin pintajuuriset puut (esim. kuusi), jotka usein ränsistyvät joutuessaan erilaisiin kasvuoloihin.",3,"Vakiintuneella, täysikasvuisena suuren koon saavuttavalla, puulla on erittäin suuri maisema-arvo, sillä se lieventää siirtymää rakentamattomasta maankäytöstä rakennettuun. Kaupunkimetsien on havaittu vaikuttavan positiivisesti tonttien hintoihin (3). Säilytettävä kasvillisuus on usein merkittävämpi maisemaelementti kuin istutettava kasvillisuus, jolla voi kestää useita vuosia vakiintua ja saavuttaa vastaava koko. Maisema-arvoon vaikuttaa merkittävästi säilytettävän kasvillisuuden kunto. Syväjuuriset, metsässä kasvaneet puut (esim. mänty) sopeutuvat paremmin yksittäispuiksi kuin pintajuuriset puut (esim. kuusi), jotka usein ränsistyvät joutuessaan erilaisiin kasvuoloihin.",3,"Hoitotarve kerran vuodessa tai harvemmin rakennusvaiheen suojaamisen jälkeen. Lannoitus (n. kerran vuodessa) sekä puun kunnon tarkkailu ja  vaarallisten oksien poisto  tarpeen alueilla, jossa puu voi kaatussaan aiheuttaa turvallisuusriskin. Terveydentilan heikentymisestä kertovat usein latvuston kellastuminen ja harventuminen sekä pienentyneet lehdet. Jalopuut kestävät tyypillisesti hyvin lahovikoja toisin kuin esimerkiksi koivu.",2.5,{"$f":"(D2*$AW$3+F2*$AW$6+H2*$AW$9+J2*$AW$10)/4","v":3.5874999999999999},{"$f":"Viherkerroin!H2","v":0},null,"3 = Suuri merkitys",null,null,null,null,null,null,null,null,null,null,null,null,null,null,null,null,null,null,null,null,null,{"$f":"IF($L2>0,AP2,0)","v":0},{"$f":"IF($L2>0,AQ2,0)","v":0},{"$f":"IF($L2>0,AR2,0)","v":0},{"$f":"IF($L2>0,AS2,0)","v":0},{"$f":"SUM(AJ2:AM2)","v":0},null,{"$f":"D2*$AW$3/4/K2","v":0.2717770034843206},{"$f":"F2*$AW$6/4/K2","v":0.35540069686411146},{"$f":"H2*$AW$9/4/K2","v":0.14634146341463414},{"$f":"J2*$AW$10/4/K2","v":0.2264808362369338},{"$f":"SUM(AP2:AS2)","v":1},null,"Osa-alueet","Haastattelu-painotus (1-3)","Osa-alueisiin kuuluvat toiminnot",null,null,null,null,null,{"$f":"IF(L2>0,1,0)","v":0}]
[null,"Säilytettävä hyväkuntoinen, pienikokoinen (täysikasvuisena ≤ 10 m) puu; vähintään 3 m (à 15m²), säilytettävä kasvualusta 15 m²","Vakiintuneella pienellä puulla on samat hyödyt kuin suurella puulla, mutta pienemmässä mittakaavassa. Huom. Syväjuuriset, metsässä kasvaneet puut (esim. mänty) sopeutuvat paremmin yksittäispuiksi kuin pintajuuriset puut (esim. kuusi), jotka usein ränsistyvät joutuessaan erilaisiin kasvuoloihin.",2.5,"Vakiintuneella pienellä puulla on samat hyödyt kuin suurella puulla, mutta pienemmässä mittakaavassa. Puulla voi olla merkitystä myös hyötyviljelyn kannalta, mikäli kyseessä on hedelmäpuu.  Hyväkuntoisen puun säilyttämisessä ei ole turvallisuusriskejä, mikäli puun juuriston ja rungon suojauksesta huolehditaan rakennusvaiheessa. Huom. Syväjuuriset, metsässä kasvaneet puut (esim. mänty) sopeutuvat paremmin yksittäispuiksi kuin pintajuuriset puut (esim. kuusi), jotka usein ränsistyvät joutuessaan erilaisiin kasvuoloihin.",2.5,"Vakiintuneella, täysikasvuisena pienen koon saavuttavalla, puulla on samat hyödyt maisema-arvon kannalta kuin suurella puulla. Koko arvioidaan maiseman kannalta toissijaiseksi, sillä puiden säilyttäminen on sinänsä on arvokasta. Maisema-arvoon vaikuttaa merkittävästi säilytettävän kasvillisuuden kunto sekä laji. Syväjuuriset, metsässä kasvaneet puut (esim. mänty) sopeutuvat paremmin yksittäispuiksi kuin pintajuuriset puut (esim. kuusi), jotka usein ränsistyvät joutuessaan erilaisiin kasvuoloihin.",3,"Sama hoitotarve kuin isolla säilytettävällä puulla.",2.5,{"$f":"(D3*$AW$3+F3*$AW$6+H3*$AW$9+J3*$AW$10)/4","v":3.2124999999999999},{"$f":"Viherkerroin!H3","v":0},null,"2 = Kohtalainen merkitys",null,null,null,null,null,null,null,null,null,null,null,null,null,null,null,null,null,null,null,null,null,{"$f":"IF($L3>0,AP3,0)","v":0},{"$f":"IF($L3>0,AQ3,0)","v":0},{"$f":"IF($L3>0,AR3,0)","v":0},{"$f":"IF($L3>0,AS3,0)","v":0},{"$f":"SUM(AJ3:AM3)","v":0},null,{"$f":"D3*$AW$3/4/K3","v":0.25291828793774318},{"$f":"F3*$AW$6/4/K3","v":0.33073929961089493},{"$f":"H3*$AW$9/4/K3","v":0.16342412451361865},{"$f":"J3*$AW$10/4/K3","v":0.25291828793774318},{"$f":"SUM(AP3:AS3)","v":0.99999999999999989},null,"Ekologisuus",1.3,"Hulevesien sidonta ja puhdistus",null,null,null,null,null,{"$f":"IF(L3>0,1,0)","v":0}]
[null,"Säilytettävä hyväkuntoinen puu (1,5-3 m) tai iso pensas, à 3 m², säilytettävä kasvualusta 3 m²","Samat hyödyt kuin säilytettävillä yli 3-metrisillä puilla, mutta pienemmässä mittakaavassa. Pensailla on erityistä merkitystä elinympäristönä ja suojapaikkana monille pieneläimille.",2,"Samat hyödyt toiminnallisuudelle kuin säilytettävillä yli 3-metrisillä puilla, mutta pienemmässä mittakaavassa. Pensaalla voi olla merkitystä myös hyötyviljelyn kannalta, mikäli kyseessä on esimerkiksi marjapensas. ",2,"Samat hyödyt maisema-arvon kannalta kuin säilytettävillä yli 3-metrisillä puilla, mutta pienemmässä mittakaavassa. Maisema-arvoon vaikuttaa merkittävästi säilytettävän kasvillisuuden kunto. ",2,"Hoitotarve muuten sama kuin yli 3-metrisillä säilytettävillä puilla, mutta pensailla suurempi lannoitus- ja leikkaustarve.",2,2.5,{"$f":"Viherkerroin!H4","v":0},null,"1 = Vähäinen merkitys",null,null,null,null,null,null,null,null,null,null,null,null,null,null,null,null,null,null,null,null,null,0,0,0,0,0,null,0.26,0.33999999999999997,0.13999999999999999,0.26,1,null,null,null,"Hiilensidonta ja -varastointi",null,null,null,null,null,0]
[null,"Alueelle siirrettävä, hyväkuntoinen alkuperäinen pohjakasvillisuus ","Alueelta peräisin oleva, maantäytöstä tai muusta syystä johtuen siirrettävällä alkuperäisellä pohjakasvillisuudella on sama ekologinen hyöty kuin istutettavalla / kylvettävällä niityllä tai kedolla. Siirrettävän pohjakasvillisuuden tulee olla hyväkuntoista, ja sillä tulee ollahyvät edellytykset menestyä uudessa kasvupaikassa.",2,"Alueelta peräisin oleva, maantäytöstä tai muusta syystä johtuen siirrettävä alkuperäinen pohjakasvillisuus on verrattavissa istutettavaan / kylvettävään niittyyn tai ketoon, mikäli pohjakasvillisuuden elinvoimaisuus säilyy. Siirrettävän pohjakasvillisuuden tulee olla hyväkuntoista, ja sillä tulee ollahyvät edellytykset menestyä uudessa kasvupaikassa.",1.5,"Alueelta peräisin oleva, maantäytöstä tai muusta syystä johtuen siirrettävä alkuperäinen pohjakasvillisuus on verrattavissa istutettavaan / kylvettävään niittyyn tai ketoon, mikäli pohjakasvillisuuden elinvoimaisuus säilyy. Siirrettävän pohjakasvillisuuden tulee olla hyväkuntoista, ja sillä tulee ollahyvät edellytykset menestyä uudessa kasvupaikassa.",2,"Alueelta peräisin oleva, maantäytöstä tai muusta syystä johtuen siirrettävä alkuperäinen pohjakasvillisuus on verrattavissa istutettavaan / kylvettävään niittyyn tai ketoon. pohjakasvillisuuteen, mikäli pohjakasvillisuuden elinvoimaisuus säilyy. Siirrettävän pohjakasvillisuuden tulee olla hyväkuntoista, ja sillä tulee ollahyvät edellytykset menestyä uudessa kasvupaikassa. Alueelle siirrettävän, alkuperäisen pohjakasvillisuuden kunnossapitotarve vaatii kuitenkin lisäselvitystä, mikä vähentää pisteitä.",1,{"$f":"(D5*$AW$3+F5*$AW$6+H5*$AW$9+J5*$AW$10)/4","v":1.9625000000000001},{"$f":"Viherkerroin!H5","v":0},null,"0 = Ei merkitystä",null,null,null,null,null,null,null,null,null,null,null,null,null,null,null,null,null,null,null,null,null,0,0,0,0,0,null,0.33121019108280253,0.32484076433121012,0.17834394904458598,0.16560509554140126,0.99999999999999978,null,null,null,"Lajien ja elinympäristöjen monimuotoisuus, ekologinen verkosto",null,null,null,null,null,0]
[null,"Alkuperäinen vesialue, esim. kosteikko, lampi (ainakin osan vuodesta pysyvä vesipinta; muun ajan maa pysyy kosteana)","Erittäin suuri merkitys hulevesien määrälliselle ja laadulliselle hallinnalle.",3,"Mahdollisuus vesileikkeihin ja luonnosta oppimiseen. Toiminnallisuutta vähentävät turvallisuusnäkökohdat ja usein vesiaiheisiin liittyvät hyöntesiet kuten hyttyset",2.5,"Vesiaiheilla on huomattava merkitys maisemalle; kosteikkojen koettu masema-arvo jakaa mielipiteitä. ",2,"Arvioitu kunnossapitotarve 1-2 kertaa vuodessa tai useammin; riippuu rakennettavan vesiaiheen tyypistä. Usein vaatii roskien poistoa ja vesiaiheeseen johtavien putkien puhdistamista. (10)",2,3.0375000000000001,{"$f":"Viherkerroin!H6","v":0},null,"Asteikko (Kunnossapito - Huom. Bonuselementeillä maksimipistemäärä 1)",null,null,null,null,null,null,null,null,null,null,null,null,null,null,null,null,null,null,null,null,null,0,0,0,0,0,null,0.32098765432098769,0.34979423868312753,0.11522633744855966,0.2139917695473251,1,null,"Toiminnallisuus",1.7,"Pienilmaston tasaaminen ja puhdistus (viilentäminen, ilman epäpuhtauksien sidonta, melun ja tuulisuuden vähentäminen, näkösuoja)",null,null,null,null,null,0]
[null,"Säilytettävä luonnonniitty tai luonnonmukainen pohjakasvillisuus","Vakiintuneella luonnontilaisella niityllä tai pohjakasvillisuudella on samat hyödyt kuin säilytettävillä puilla ja pensailla, mutta pienemmässä mittakaavassa. Niityllä ja luonnontilaisella pohjakasvillisuudella on erityistä merkitystä ravinnonlähteenä, elinympäristönä ja suojapaikkana monille pieneläimille. Pohjakasvillisuuden säilyttäminen on usein haastavaa, sillä kasvillisuus on tottunut tiettyihin kasvuolosuhteisiin (vrt. metsäkasvillisuus).",2,"Samat hyödyt toiminnallisuudelle kuin säilytettävillä puilla ja pensailla, mutta pienemmässä mittakaavassa. ",1.5,"Säilytettävällä niityllä tai pohjakasvillisuudella on samat hyödyt maisema-arvon kannalta kuin säilytettävillä pensailla. Maisema-arvoon vaikuttaa merkittävästi säilytettävän kasvillisuuden kunto.  ",2,"Niityn niitto 1-2 kertaa vuodessa; säilytettävän pohjakasvillisuuden kunnossapitotarve vaatii lisäselvitystä.",2,2.2875000000000001,{"$f":"Viherkerroin!H7","v":0},null,"3 = Hoitotarve harvemmin kuin kerran vuodessa",null,null,null,null,null,null,null,null,null,null,null,null,null,null,null,null,null,null,null,null,null,0,0,0,0,0,null,0.28415300546448086,0.27868852459016391,0.15300546448087429,0.28415300546448086,0.99999999999999989,null,null,null,"Ruoantuotanto hyötyviljelyllä, oppiminen luonnosta, leikkiminen",null,null,null,null,null,0]
[null,"Säilytettävä avokallio ","Kallio on erityisen tärkeä elinympäristö (4). Ekologisuudesta saatavia pisteitä vähentää läpäisemättömän pinnan negatiivinen merkitys hulevesien hallinnalle sekä hiilensidonnalle ja -varastoinnille. Kalliokasvillisuus on lisäksi erittäin herkkää kulumiselle, mikä vähentää sen ekologista arvoa, ellei kalliolla kulkua rajoiteta.",2,"Toiminnallisuutta lisää mahdollisuus virkistyskäyttöön ja luonnosta oppimiseen. Toiminnallisuutta vähentää kalliokasvillisuuden herkkyys kulumiselle, mistä johtuen mahdollinen suojaus tai kulun ohjaus (esim. portailla) voi olla tarpeen eroosion rajoittamiseksi ja turvallisuuden lisäämiseksi.",1,"Avokallion maisema-arvo on huomattava. Kallion maisema-arvoa ei voi toisintaa keinotekoisesti jälkeenpäin, mistä johtuen se tulisi aina säilyttää maisemassa, kun mahdollista.",3,"Hoitotarve harvemmin kuin kerran vuodessa. Mahdollinen suojaus tai kulun ohjaus (esim. portailla) tarpeen eroosion rajoittamiseksi ja turvallisuuden lisäämiseksi.",3,2.5750000000000002,{"$f":"Viherkerroin!H8","v":0},null,"2 = Hoitotarve 1-2 kertaa vuodessa",null,null,null,null,null,null,null,null,null,null,null,null,null,null,null,null,null,null,null,null,null,0,0,0,0,0,null,0.25242718446601942,0.16504854368932037,0.20388349514563103,0.37864077669902912,1,null,null,null,"Turvallisuus",null,null,null,null,null,0]
["Istutettava / kylvettävä kasvillisuus","Isokokoinen puu, täysikasvuisena > 10 m; à 25 m²; kasvualustan syvyys 0,8 m; yksittäispuun istutuskuopan mitat 2 x 2 m  ","Isokokoisella istutettavalla puulla on samat hyödyt kuin vastaavalla säilytettävällä puulla, mutta hyödyt realisoituvat usein vasta vuosien päästä. Suuri kasvulausta on merkittävä hulevesien hallinnan kannalta. Pitkäikäisten, puuvartisten kasvien merkitys hiilensidonnalle ja varastoinnille on erityisen  suuri.",2.5,"Isokokoisella istutettavalla puulla on samat hyödyt kuin vastaavalla säilytettävällä puulla, mutta hyödyt realisoituvat usein vasta vuosien päästä. Istutettavan puun hyötyjä pienilmaston säätelyssä lisää kuitenkin mahdollisuus puulajin ja istutuspaikan määrittämiseen rakennukseen nähden, mikä ei ole mahdollista säilytettävällä kasvillisuudella.",2,"Isokokoisella istutettavalla puulla on samat hyödyt kuin vastaavalla säilytettävällä puulla, mutta hyödyt realisoituvat usein vasta vuosien päästä. Istutettavan puun maisema-arvoa lisää kuitenkin mahdollisuus puulajin ja istutuspaikan määrittämiseen rakennukseen nähden, mikä ei ole mahdollista säilytettävällä kasvillisuudella.",3,"Hoitotarve 1-2 kertaa vuodessa. Lannoitus kerran vuodessa, minkä lisäksi leikkaus ja rungon suojaaminen kasvinsyöjiltä mahdollisesti tarpeen.",2,2.8374999999999999,{"$f":"Viherkerroin!H9","v":0},null,"1 = Hoitotarve yli 3 kertaa vuodessa",null,null,null,null,null,null,null,null,null,null,null,null,null,null,null,null,null,null,null,null,null,0,0,0,0,0,null,0.28634361233480177,0.29955947136563876,0.18502202643171803,0.22907488986784141,1,null,"Maisema-arvo",0.7,"Liittyminen ympäröivään kaupunkikuvaan, vaikutus maisemaan (esim. kukat ja marjat)",null,null,null,null,null,0]
[null,"Pienikokoinen puu, täysikasvuisena ≤ 10 m; à 15 m²; kasvualustan syvyys 0,6 m; yksittäispuun istutuskuopan mitat 1,5 x 1,5 m  ","Pienikokoisella istutettavalla puulla on samat hyödyt kuin istutettavalla isolla puulla, mutta pienemmässä mittakaavassa (kasvin ja kasvualustan koko).",2,"Pienikokoisella istutettavalla puulla on samat hyödyt kuin istutettavalla isolla puulla, mutta pienemmässä mittakaavassa (kasvin koko). Puulla voi olla merkitystä myös hyötyviljelyn kannalta, mikäli kyseessä on hedelmäpuu.  ",1.5,"Pienikokoisella istutettavalla puulla on samat hyödyt kuin istutettavalla isolla puulla, mutta pienemmässä mittakaavassa.",2.5,"Sama hoitotarve kuin isoilla puilla.",2,2.375,{"$f":"Viherkerroin!H10","v":0},null,"0 = Hoitotarve useammin kuin kerran kuukaudessa",null,null,null,null,null,null,null,null,null,null,null,null,null,null,null,null,null,null,null,null,null,{"$f":"IF($L10>0,AP10,0)","v":0},{"$f":"IF($L10>0,AQ10,0)","v":0},{"$f":"IF($L10>0,AR10,0)","v":0},{"$f":"IF($L10>0,AS10,0)","v":0},{"$f":"SUM(AJ10:AM10)","v":0},null,{"$f":"D10*$AW$3/4/K10","v":0.27368421052631581},{"$f":"F10*$AW$6/4/K10","v":0.26842105263157895},{"$f":"H10*$AW$9/4/K10","v":0.18421052631578946},{"$f":"J10*$AW$10/4/K10","v":0.27368421052631581},{"$f":"SUM(AP10:AS10)","v":1},null,"Kunnossapito",1.3,"Helppohoitoiset ratkaisut",null,null,null,null,null,0]
[null,"Isot pensaat, à 3 m²; kasvualustan syvyys 0,6 m","Istutettavalla isokokoisella pensaalla on samat hyödyt kuin istutettavilla puilla, mutta pienemmässä mittakaavassa (kasvin ja kasvualustan koko). Pensailla on erityistä merkitystä elinympäristönä ja suojapaikkana monille pieneläimille.",1.5,"Istutettavalla isokokoisella pensaalla on samat hyödyt kuin istutettavilla puilla, mutta pienemmässä mittakaavassa (kasvin koko). Pensailla voi olla merkitystä myös hyötyviljelylle sekä tilanjakajina pihan toiminnoille.",1,"Isokokoisella istutettavalla pensaalla on samat hyödyt kuin istutettavalla pienellä puulla, mutta pienemmässä mittakaavassa (kasvin koko). Pensaat soveltuvat hyvin tilanjakajiksi pihan eri toimintojen välille.",2,"Hoitotarve jonkin verran suurempi kuin puilla. Arvioitu hoitotarve (leikkaus ja lannoitus) 2-3 kertaa vuodessa. Lisäksi rungon sekä lehvästön suojaaminen kasvinsyöjiltä mahdollisesti tarpeen.",1.5,1.7500000000000002,{"$f":"Viherkerroin!H11","v":0},null,"Huom. Pisteytyksessä ei ole huomioitu kustannuksia (esim. käsityön tarvetta). ",null,null,null,null,null,null,null,null,null,null,null,null,null,null,null,null,null,null,null,null,null,0,0,0,0,0,null,0.27857142857142858,0.24285714285714283,0.19999999999999996,0.27857142857142858,0.99999999999999989,null,null,null,null,null,null,null,null,null,0]
[null,"Muut pensaat, à 1,5 m²; kasvualustan syvyys 0,4 m","Istutettavalla pienemmällä pensaalla on samat hyödyt kuin istutettavalla suurella pensaalla, mutta pienemmässä mittakaavassa (kasvin ja kasvualustan koko). Pensailla on erityistä merkitystä elinympäristönä ja suojapaikkana monille pieneläimille.",1,"Istutettavalla pienempikokoisella pensaalla on samat hyödyt kuin isolla pensaalla. Pensailla voi olla merkitystä myös hyötyviljelylle.",1,"Pienemmällä istutettavalla pensaalla on samat hyödyt kuin isommalla. Kasvin koon lisäksi maisema-arvoon vaikuttaa kuitenkin yhtä suuressa määrin lajivalinta, minkä vuoksi hyöty arvioidaan samaksi.",2,"Sama hoitotarve kuin isommilla pensailla.",1.5,1.5875000000000001,{"$f":"Viherkerroin!H12","v":0},null,"Huom. Pisteytystä vähentää puutteellinen kokemus elementin kunnossapidosta Suomessa",null,null,null,null,null,null,null,null,null,null,null,null,null,null,null,null,null,null,null,null,null,0,0,0,0,0,null,0.20472440944881889,0.26771653543307083,0.22047244094488186,0.30708661417322836,0.99999999999999989,null,"Viherkertoimen muodostuminen","Ekologisuus","Toiminnallisuus","Maisema-arvo","Kunnossapito","Yhteensä",null,null,0]
[null,"Perennat, kasvualustan syvyys 0,4-0,6 m","Istutettavilla perennoilla on samat hyödyt kuin elementillä \"Muut pensaat\", mutta niihin liittyy usein suurempi kasvualustan koko (hulevesien hallinta). Perennat tarjoavat ravintoa, elinympäristöjä ja suojapaikkoja monille pieneläimille.",1.5,"Istutettavilla perennoilla on samat hyödyt kuin pienemmilla istutettavilla pensailla.",1,"Perennoilla on vastaava maisema-arvo kuin pensailla: vaikka perennat ovat tyypillisesti pienempikokoisia, niillä on usein kestävämmät ja näyttävämmät kukinnot.",2,"Hyvin suunniteltu kasvillisuus ei vaadi hoitoa useammin kuin kerran kuukaudessa. Hoidon ja kastelun tarve vaihtelee kuitenkin huomattavasti lajin, istutuspaikan ja sateisuuden mukaan. Arvioitu hoitotarve keskimäärin yli 3 kertaa vuodessa. Lannoitus ja mahdollinen suojaaminen kasvinsyöjiltä tarpeen.",1,1.5875000000000001,{"$f":"Viherkerroin!H13","v":0},null,null,null,null,null,null,null,null,null,null,null,null,null,null,null,null,null,null,null,null,null,null,null,0,0,0,0,0,null,0.30708661417322836,0.26771653543307083,0.22047244094488186,0.20472440944881889,0.99999999999999989,null,null,{"$f":"SUM(AJ2:AJ45)/SUM($AN2:$AN45)","v":{"$error":"#DIV/0!"}},{"$f":"SUM(AK2:AK45)/SUM($AN2:$AN45)","v":{"$error":"#DIV/0!"}},{"$f":"SUM(AL2:AL45)/SUM($AN2:$AN45)","v":{"$error":"#DIV/0!"}},{"$f":"SUM(AM2:AM45)/SUM($AN2:$AN45)","v":{"$error":"#DIV/0!"}},{"$f":"SUM(AW13:AZ13)","v":{"$error":"#DIV/0!"}},null,null,0]
[null,"Niitty tai keto, kasvualustan syvyys 0,15-0,3 m","Niityt ja kedot (kuivat niityt) ovat luonnonmukaisempi (vähemmän hoitoa vaativa) ja monilajisempi vaihtoehto esimerkiksi perennoille. Niityn vaatima kasvualusta on kuitenkin ohuempi, mistä johtuen sen merkitys hulevesien hallinnalle on pienempi kuin perennojen. Kokonaisuudessaan samansuuruinen ekologinen merkitys. Niityllä on erityistä merkitystä monimuotoisuudelle mm. pölyttäjiä houkuttelevien kukkivien kasvien ansiosta (13).",2,"Niittyjen tarjoama hyöty pienilmastolle vastaa perennoja. Niitty voi kuitenkin tarjoata paremmat mahdollisuudet oppia luonnosta.",1,"Koettu masema-arvo jakaa mielipiteitä. Kukinta lisää niityn ja kedon maisema-arvoa; \"hallittu hoitamattomuus\" ei kuitenkaan sovellu kaikkiin maankäyttötyyppeihin.",1.5,"Vakiintumisen (niitto muutaman kerran kesässä) jälkeen vaatii hoitoa 1-2 kertaa kesässä, kuivat kedot jopa harvemmin. Niityt ja kedot vaativat vähemmän hoitoa kuin esimerkiksi perennat.",2,1.9874999999999998,{"$f":"Viherkerroin!H14","v":0},null,null,null,null,null,null,null,null,null,null,null,null,null,null,null,null,null,null,null,null,null,null,null,0,0,0,0,0,null,0.32704402515723274,0.21383647798742139,0.13207547169811321,0.32704402515723274,1,null,"Elementtityyppi","Täytetty pinta-ala, m2","Osuus kokonaispinta-alasta, %","Täytetty lkm","Kokonaislkm","Osuus kokonaislkm:stä, %",null,null,0]
[null,"Viljelypalstat (kasvualustan syvyys riippuu viljeltävistä lajeista, vähintään 0,3 m)","Viljelypalstat koostuvat usein yksivuotisista lajeista, joten niiden ekologinen merkitys painottuu kasvukaudelle, jolloin suuri merkitys pölyttäjille ja lajien monimuotoisuudelle, ja kohtalainen merkitys hulevesien hallinnalle.  Pienempi merkitys kuin esim. perennoilla.",1,"Viljelypalstat ovat erittäin merkittäviä toiminnallisuudelle, sillä ne tarjoavat mahdollisuuden hyötyviljelyyn ja luonnosta oppimiseen.",3,"Mahdollinen kukinta, marjat ja hedelmät lisäävät maisema-arvoa ja vaihtelua; viljelyn kausiluonteisuus ja mahdollinen hoitamattomuuden aiheuttama epäsiisteys vähentävät sitä (esimerkiksi perennoihin nähden).",1.5,"Viljelyyn soveltuvat alueet vaativat usein runsaasti hoitoa, mutta hoidosta vastaavat asukkaat. Taloyhtiölle koituva kunnosspitovastuu pienempi kuin esim. nurmikolla.",2,2.5124999999999997,{"$f":"Viherkerroin!H15","v":0},null,null,null,null,null,null,null,null,null,null,null,null,null,null,null,null,null,null,null,null,null,null,null,0,0,0,0,0,null,0.12935323383084579,0.5074626865671642,0.1044776119402985,0.25870646766169159,1,null,"Säilytettävä kasvillisuus",{"$f":"SUM(L2:L8)","v":0},{"$f":"AW15/Viherkerroin!$A$13","v":{"$error":"#DIV/0!"}},{"$f":"SUM(BD2:BD8)","v":0},7,{"$f":"AY15/$AY$20","v":{"$error":"#DIV/0!"}},null,null,0]
[null,"Nurmikko, kasvualustan syvyys 0,15-0,2 m","Nurmikolla on merkitystä hulevesien hallinnalle ja monimuotoisuudelle, mutta pienemmässä määrin kuin esimerkiksi perennoilla (kasvin ja kasvualustan koko). Vaatii tyypillisesti säännöllistä hoitoa, minkä vuoksi ei ole niin merkittävä monimuotoisuudelle.",0.5,"Nurmikko tarjoaa hyvät mahdollisuudet leikkimiseen. Nurmikon vaikutus pienilmaston säätelyssä on kuitenkin pieni (koko).",1.5,"Hoidettu nurmikko on siisti; hoitamattomana maisema-arvo vähenee merkittävästi. Muuhun matalaan kasvillisuuteen nähden yksipuolinen elementti.",1,"Hoitotarve useammin kuin kerran kuukaudessa. Nurmikko vaatii tyypillisesti säännöllistä leikkausta ja lannoitusta, sekä kuivina kausina kastelua.",0.5,1.1375,{"$f":"Viherkerroin!H16","v":0},null,null,null,null,null,null,null,null,null,null,null,null,null,null,null,null,null,null,null,null,null,null,null,0,0,0,0,0,null,0.14285714285714288,0.56043956043956045,0.15384615384615385,0.14285714285714288,1,null,"Istutettava kasvillisuus",{"$f":"SUM(L9:L20)","v":0},{"$f":"AW16/Viherkerroin!$A$13","v":{"$error":"#DIV/0!"}},{"$f":"SUM(BD9:BD20)","v":0},12,{"$f":"AY16/$AY$20","v":{"$error":"#DIV/0!"}},null,null,0]
[null,"Viherkatot ( > 0,3 m)","Viherkatot ovat hulevesien hallinnan osalta verrattavissa nurmikon kaltaiseen matalaan kasvillisuuteen. Viherkatto yli 0,3 m syvällä kasvualustalla on kuitenkin merkittämpi hulevesien hallinnalle kuin nurmikko (0,05-0,2 m kasvualusta). Viherkatot vähentävät myös rakennusten enengiankulutusta ja tämän myötä kasvihuonekaasupäästöjä.",1.5,"Viherkatot ovat toiminnallisuuden osalta verrattavissa nurmikon kaltaiseen matalaan kasvillisuuteen. Viherkatot tarjoavat esimerkiksi mahdollisuuden hyötyviljelyyn ja vähentävät rakennusten enengiankulutusta.",1.5,"Viherkatot ovat merkittäviä maisemalle, sillä ne lisäävät vehreyttä siellä, missä normaalisti olisi läpäisemätöntä pintaa. Lisäksi viherkatot näkyvät usein pidemmälle kuin esimerkiksi matalat perennat. Monilajiset ja esimerkiksi maksaruoho(Sedum)-peitteellä varustetut viherkatot ovat myös monivärisiä ja luovat vuodenaikaisvaihtelua. Mitä paksumpi kasvualusta viherkatolla on, sitä suurempi valikoima istutettavassa kasvillisuudessa on. Arvioitu perennoja vastaava maisema-arvo.",2,"Hoitotarve yli 3 kertaa vuodessa. Vaatii vedenpoistojärjestelmien ja kasvillisuuden hoitoa sekä roskien, puuntaimien ja lumen poistoa (10). Viherkaton lisääminen jälkikäteen rakennukseen vaatii usein kantavuuden lisäämistä rakenteellisilla muutoksilla.",1,1.8,{"$f":"Viherkerroin!H17","v":0},null,null,null,null,null,null,null,null,null,null,null,null,null,null,null,null,null,null,null,null,null,null,null,0,0,0,0,0,null,0.27083333333333337,0.35416666666666663,0.19444444444444442,0.18055555555555555,1,null,"Pinnoitteet",{"$f":"SUM(L21:L22)","v":0},{"$f":"AW17/Viherkerroin!$A$13","v":{"$error":"#DIV/0!"}},{"$f":"SUM(BD21:BD22)","v":0},2,{"$error":"#DIV/0!"},null,null,0]
[null,"Viherkatot (0,05 - 0,3 m)","Viherkatto 0,05 - 0,3 m kasvualustalla tarjoaa samat hyödyt ekologisuudelle kuin viherkatto > 0,3 m kasvualustalla, mutta pienemmässä mittakaavassa.",1,"Viherkatto 0,05 - 0,3 m kasvualustalla tarjoaa samat hyödyt toiminnallisuudelle kuin viherkatto > 0,3 m kasvualustalla, mutta pienemmässä mittakaavassa.",1,"Maisema-arvo sama kuin paksummalla viherkatolla, mutta pienemmässä mittakaavassa, sillä ohuemmalle kasvualustalle ei ole mahdollista istuttaa yhtä monipuolista kasvillisuutta. ",1.5,"Hoitotarve sama kuin paksummalla viherkatolla.",1,1.3374999999999999,{"$f":"Viherkerroin!H18","v":0},null,null,null,null,null,null,null,null,null,null,null,null,null,null,null,null,null,null,null,null,null,null,null,0,0,0,0,0,null,0.2429906542056075,0.31775700934579443,0.19626168224299062,0.2429906542056075,1,null,"Hulevesien hallintarakenteet",{"$f":"SUM(L23:L29)","v":0},{"$f":"AW18/Viherkerroin!$A$13","v":{"$error":"#DIV/0!"}},{"$f":"SUM(BD23:BD29)","v":0},7,{"$error":"#DIV/0!"},null,null,0]
[null,"Monivuotiset köynnökset, kasvualustan syvyys 0,6 m, vertikaalinen pinta-ala (à 2 m²)","Monivuotiset köynnökset ovat verrattavissa ekologisuuden osalta muihin perennakasveihin. Vertikaalinen kasvutapa rajoittaa kuitenkin latvuspeittävyyden kautta hulevesien sidontakykyä. Näin ollen vertikaalisen pinta-alan lisääntyminen ei ole suotaan verrainnollinen hulevesien hallinnasta saataviin hyötyihin -> pienempi painotus kuin maata peittävillä perennoilla.",1,"Köynnökset tarjoavat samankaltaisen hyödyn pienilmastolle ja rakennusten energiankulutukselle kuin viherkatot.",1,"Köynnökset lisäävät vehreyttä siellä, missä normaalisti olisi läpäisemätöntä pintaa. Kukkivat/syysvärin saavat köynnökset tuovat väriä viherrakenteeseen. Arvioitu vähintään isokokoisia pensaita vastaava maisema-arvo",2,"Hoitotarve arvioitu vastaamaan pensaita. Tietyt köynnökset voivat rakennuksia vasten kasvaessaan vaurioittaa julkisivuja ja lisätä kunnostustarvetta.",1.5,1.5875000000000001,{"$f":"Viherkerroin!H19","v":0},null,null,null,null,null,null,null,null,null,null,null,null,null,null,null,null,null,null,null,null,null,null,null,0,0,0,0,0,null,0.20472440944881889,0.26771653543307083,0.22047244094488186,0.30708661417322836,0.99999999999999989,null,"Bonuselementit",{"$f":"SUM(L30:L48)","v":0},{"$f":"AW19/Viherkerroin!$A$13","v":{"$error":"#DIV/0!"}},{"$f":"SUM(BD30:BD48)","v":0},19,{"$f":"AY19/$AY$20","v":{"$error":"#DIV/0!"}},null,null,0]
[null,"Viherseinä, vertikaalinen pinta-ala","Viherseinän ekologinen arvo riippuu toteutustavasta ja sijainnista. Viherseinällä, joka ei ole kytkeytynut kasvualustaan, on pienempi merkitys hulevesien hallinnalle kuin köynnöksillä. Vaatii lisäselvitystä.",0.5,"Sama arvioitu hyöty kuin köynnöksillä.",1,"Hyvin suunnitellulla viherseinällä on sama arvioitu hyöty kuin köynnöksillä.",2,"Viherseinien toimivuudesta ei ole riittävästi kokemusta Suomessa kunnossapitotarpeen arvioimiseksi. Toimintojen säilyttämiseksi hoitotoimenpiteiden tarve voi kuitenkin olla merkittävä. Vaatii lisäselvityksiä. Lähtökohdaksi vertailuun otettu paljon hoitoa vaativa nurmikko.",0.5,1.1000000000000001,{"$f":"Viherkerroin!H20","v":0},null,null,null,null,null,null,null,null,null,null,null,null,null,null,null,null,null,null,null,null,null,null,null,0,0,0,0,0,null,0.14772727272727271,0.3863636363636363,0.31818181818181812,0.14772727272727271,0.99999999999999978,null,null,null,null,{"$f":"SUM(AY15:AY19)","v":0},{"$f":"SUM(AZ15:AZ19)","v":47},{"$f":"SUM(BA15:BA19)","v":{"$error":"#DIV/0!"}},null,null,0]
["Pinnoitteet","Puoliläpäisevät pinnoitteet (esim. nurmikivi, kasvualusta 0,3 m)","Puoliläpäisevä pinta, jossa kuitenkin haihduttavaa ja hiiltä sitovaa kasvillisuutta, soveltuu kohtalaisesti hulevesien hallintaan (10). Kasvualusta paksumpi kuin tavallisella nurmikolla. Arvioitu ekologinen hyöty samansuuruinen kuin nurmikolla.",0.5,"Sama toiminnallisuus kuin nurmikolla pienemmällä pienilmaston säätelyvaikutuksella -> alhaisempi painotus.",1,"Puoliläpäisevä nurmikivi-pinnoite on siisti - maisema-arvoltaan verrattavissa nurmikkoon.",1,"Hoitotarve yli 3 kertaa vuodessa. Puoliläpäisevien pinnoitteiden talvikunnossapito haasteellista (10). Suuri kiintoaineen tai roskien määrä heikentää pinnoitteen läpäisevyyttä.",1,1.0874999999999999,{"$f":"Viherkerroin!H21","v":0},null,null,null,null,null,null,null,null,null,null,null,null,null,null,null,null,null,null,null,null,null,null,null,0,0,0,0,0,null,0.14942528735632185,0.39080459770114945,0.16091954022988506,0.2988505747126437,1,null,"Elementtityyppi","Ekologisuus","Toiminnallisuus","Maisema-arvo","Kunnossapito","Yhteensä",null,null,0]
[null,"Läpäisevät pinnoitteet (esim. sora- ja hiekkapinnat, kivituhka)","Parempi hulevesien läpäisevyys kuin nurmikivellä, mutta vähemmän muita ekologisia hyötyjä.",0.5,"Sama toiminnallisuus kuin nurmikolla ilman pienilmaston säätelyvaikutusta -> alhaisempi painotus",1,"Läpäisevä hiekka-, sora- tai kivituhkapinta on selkeä eikä vaadi paljoa hoitoa näyttääkseen siistiltä. Viherrakenteen kannalta kuitenkin epäedullinen elementti, sillä vähentää tontin vehreyttä.",1,"Hoitotarve harvemmin kuin kerran vuodessa. ",3,1.7375,{"$f":"Viherkerroin!H22","v":0},null,null,null,null,null,null,null,null,null,null,null,null,null,null,null,null,null,null,null,null,null,null,null,0,0,0,0,0,null,9.3525179856115109E-2,0.24460431654676257,0.10071942446043164,0.56115107913669071,1,null,"Säilytettävä kasvillisuus",{"$f":"SUM(AJ2:AJ8)/SUM($AN2:$AN8)","v":{"$error":"#DIV/0!"}},{"$f":"SUM(AK2:AK8)/SUM($AN2:$AN8)","v":{"$error":"#DIV/0!"}},{"$error":"#DIV/0!"},{"$error":"#DIV/0!"},{"$f":"SUM(AW22:AZ22)","v":{"$error":"#DIV/0!"}},null,null,0]
["Hulevesien hallintarakenteet","Sadepuutarha (biosuodatusalue,ei pysyvää vesipintaa), jossa monipuolista ja kerroksellista kasvillisuutta","Hulevesienhallinnan ja lajiston monimuotoisuuden kannalta erittäin merkittävä; soveltuu hyvin hulevesien hallintaan (10). Runsaan kasvillisuuden ansiosta myös merkitystä hiilensidonnalle. Ekologisuutta lisää mahdollisuus hyödyntää hulevedet puutarhanhoidossa. Huom. Vieraslajeja ja muita aggressiivisesti leviäviä lajeja vältettävä.",2.5,"Runsaan kasvillisuuden ansiosta merkitys pienilmaston säätelylle ja luonnosta oppimiselle. Toiminnallisuutta lisää osaltaan mahdollisuus puutarhanhoitoon.",2,"Hyvin suunniteltuna sadepuutarha voi toimia edustavana maisemaelementtinä, jonka maisema-arvoa ajoittainen kuivuminen ei heikennä. Lajit tulee valita tästä lähtökohdasta.",2.5,"Hyvin suunniteltu sadepuutarha ei kärsi ajoitteisesta kuivumisesta. Kasvillisuuden ja muiden pintojen hoitotarpeeksi arvioitu 1-2 kertaa vuodessa (hoitotarve vaatii kuitenkin lisäselvitystä) (10)",1.5,2.5875000000000004,{"$f":"Viherkerroin!H23","v":0},null,null,null,null,null,null,null,null,null,null,null,null,null,null,null,null,null,null,null,null,null,null,null,0,0,0,0,0,null,0.31400966183574874,0.32850241545893716,0.16908212560386471,0.18840579710144928,1,null,"Istutettava kasvillisuus",{"$f":"SUM(AJ9:AJ20)/SUM($AN9:$AN20)","v":{"$error":"#DIV/0!"}},{"$f":"SUM(AK9:AK20)/SUM($AN9:$AN20)","v":{"$error":"#DIV/0!"}},{"$error":"#DIV/0!"},{"$error":"#DIV/0!"},{"$f":"SUM(AW23:AZ23)","v":{"$error":"#DIV/0!"}},null,null,0]
[null,"Viivytyslammikko pysyvällä vesipinnalla, m2 (huolehdittava, että vesi vaihtuu/kiertää)","Erittäin suuri merkitys hulevesien määrälliselle ja laadulliselle hallinnalle.",3,"Mahdollisuus vesileikkeihin ja luonnosta oppimiseen. Toiminnallisuutta vähentävät turvallisuusnäkökohdat ja usein vesiaiheisiin liittyvät hyöntesiet kuten hyttyset",2.5,"Vesiaiheilla on huomattava merkitys maisemalle",2.5,"Arvioitu kunnossapitotarve 1-2 kertaa vuodessa tai useammin; riippuu rakennettavan vesiaiheen tyypistä. Usein vaatii roskien poistoa ja vesiaiheeseen johtavien putkien puhdistamista. (10)",2,{"$f":"(D24*$AW$3+F24*$AW$6+H24*$AW$9+J24*$AW$10)/4","v":3.125},{"$f":"Viherkerroin!H24","v":0},null,null,null,null,null,null,null,null,null,null,null,null,null,null,null,null,null,null,null,null,null,null,null,0,0,0,0,0,null,0.31200000000000006,0.34,0.14000000000000001,0.20800000000000002,1.0000000000000002,null,"Pinnoitteet",{"$f":"SUM(AJ21:AJ22)/SUM($AN21:$AN22)","v":{"$error":"#DIV/0!"}},{"$f":"SUM(AK21:AK22)/SUM($AN21:$AN22)","v":{"$error":"#DIV/0!"}},{"$error":"#DIV/0!"},{"$error":"#DIV/0!"},{"$error":"#DIV/0!"},null,null,0]
[null,"Imeytyspainanne kasvillisuus- tai kiviainespinnalla (ei pysyvää vesipintaa, läpäisevä maaperä)","Erittäin suuri merkitys hulevesien määrälliselle ja laadulliselle hallinnalle (10). Pienempi merkitys monimuotoisuudelle ja hiilensidonnalle kuin sadepuutarhalla.",2.5,"Pienempi merkitys pienilmaston tasaamisessa kuin sadepuutarhalla. Mahdollistaa suurelta osin samat toiminnot kuin nurmikko ja läpäisevät pinnoitteet.",1.5,"Maisema-arvo riippuu painanteen toteutustavasta. Tyypillisesti sora- ja nurmipeitteellä varustettu painanne verrattavissa kyseisien elementtien maisema-arvoon.",1,"Hoitotarve riippuu toteutustavasta. Nurmipinta verrattavissa nurmikkoon (0,5), kiviainespintaa hoidettava harvemmin. Keskimääräinen hoitotarve (1-2 kertaa vuodessa/ kerran kuukaudessa) = 1. Vaatii roskien ja kiintoaineksen poistoa, suodattavan kerroksen läpäisevyyden ylläpitoa, kaivon lietepesän tyhjennystä (kerran vuodessa) (10)",1,1.95,{"$f":"Viherkerroin!H25","v":0},null,null,null,null,null,null,null,null,null,null,null,null,null,null,null,null,null,null,null,null,null,null,null,0,0,0,0,0,null,0.41666666666666669,0.32692307692307693,8.9743589743589744E-2,0.16666666666666669,1,null,"Hulevesien hallintarakenteet",{"$f":"SUM(AJ23:AJ29)/SUM($AN23:$AN29)","v":{"$error":"#DIV/0!"}},{"$f":"SUM(AK23:AK29)/SUM($AN23:$AN29)","v":{"$error":"#DIV/0!"}},{"$error":"#DIV/0!"},{"$error":"#DIV/0!"},{"$error":"#DIV/0!"},null,null,0]
[null,"Imeytyskaivanto (maanalainen)","Pienempi merkitys pienvesien virtaamien tasaamisessa ja eroosion ehkäisyssä kuin imeytyspainanteella. Ei merkitystä monimuotoisuudelle ja hiilensidonnalle. Toisaalta vapauttaa tilaa kasvillisuudelle tai muulle maankäytölle maan pinnalla.",2,"Ei merkitystä pienilmaston tasaamiselle. Toiminnallisuutta lisää mahdollisuus muiden toimintojen sijoittamiseen kaivannon päälle.",1,"Ei merkitystä maisemalle",0,"Hoitotarve pienempi kuin kasvillisuuspintaisella rakenteella. Vaatii roskien ja kiintoaineksen poisto, suodattavan kerroksen läpäisevyyden ylläpito, kaivon lietepesän tyhjennys (kerran vuodessa) (10)",1.5,1.5625,{"$f":"Viherkerroin!H26","v":0},null,null,null,null,null,null,null,null,null,null,null,null,null,null,null,null,null,null,null,null,null,null,null,0,0,0,0,0,null,0.41600000000000004,0.27200000000000002,0,0.31200000000000006,1,null,"Bonuselementit",{"$f":"SUM(AJ30:AJ48)/SUM($AN30:$AN48)","v":{"$error":"#DIV/0!"}},{"$f":"SUM(AK30:AK48)/SUM($AN30:$AN48)","v":{"$error":"#DIV/0!"}},{"$error":"#DIV/0!"},{"$error":"#DIV/0!"},{"$f":"SUM(AW26:AZ26)","v":{"$error":"#DIV/0!"}},null,null,0]
[null,"Kosteikko tai tulvaniitty luonnonmukaisella kasvillisuudella (ainakin osan vuodesta pysyvä vesipinta; muun ajan maa pysyy kosteana); Katso: Hagelberg et al., 2009 (18)","Luonnonmukainen kasvillisuus tärkeää monimuotoisuudelle, elinympäristöille ja ekologiselle verkostolle. Imeytyspainannetta vastaava merkitys hulevesien hallinnalle (10). Runsaan kasvillisuuden ansiosta myös merkitystä hiilensidonnalle. Huom. Vieraslajeja ja muita aggressiivisesti leviäviä lajeja vältettävä.",3,"Runsaan kasvillisuuden ansiosta merkitys pienilmaston säätelylle sekä luonnosta oppimiselle.",2,"Koettu masema-arvo jakaa mielipiteitä. Soveltuu  väljään yhdyskuntarakenteeseen, jossa suositaan luonnonmukaisempaa kasvillisuutta.",1.5,"Kosteikkokasvillisuus vaatii jonkin verran hoitoa monipuolisen kasvivalikoiman säilyttämiseksi, umpeenkasvun estämiseksi ja toimivuuden takaamiseksi. Esim. Tasausaltaan ja purku-uomien tai -putkien puhdistamisesta  huolehdittava. Arvioitu tarve kasvillisuuden hoitoon ja rakenteiden toimivuuden varmistamiseen 1-2 kertaa vuodessa; ruoppaus 10-15 vuoden välein. (10)",2,2.7375000000000003,{"$f":"Viherkerroin!H27","v":0},null,null,null,null,null,null,null,null,null,null,null,null,null,null,null,null,null,null,null,null,null,null,null,0,0,0,0,0,null,0.35616438356164382,0.31050228310502281,9.589041095890409E-2,0.23744292237442921,0.99999999999999989,null,null,null,null,null,null,null,null,null,0]
[null,"Viivytyspainanne kasvillisuus- tai kiviainespinnalla (ei pysyvää vesipintaa)","Samat toiminnot kuin kosteikolla, mutta pienempi määrällinen ja laadullinen merkitys hulevesien hallinnalle. Pienempi merkitys monimuotoisuudelle sekä hiilensidonnalle.",2,"Toiminnallisuus verrattavissa imeytyspainanteeseen.",1.5,"Maisema-arvo riippuu painanteen toteutustavasta. Tyypillisesti sora- ja nurmipeitteellä varustettu painanne verrattavissa kyseisien elementtien maisema-arvoon.",1,"Hoitotarve verrattavissa imeytyspainanteeseen. Sis: kasvillisuuden tai kiviainespinnan hoito, purkuputken tai maapadon toimivuuden tarkkailu sekä\nroskien ja kiintoaineksen poisto tarvittaessa (10)",1,1.7875000000000001,{"$f":"Viherkerroin!H28","v":0},null,null,null,null,null,null,null,null,null,null,null,null,null,null,null,null,null,null,null,null,null,null,null,0,0,0,0,0,null,0.36363636363636365,0.35664335664335661,9.790209790209789E-2,0.18181818181818182,1,null,null,null,null,null,null,null,null,null,0]
[null,"Viivytyskaivanto tai -säiliö (maanalainen)","Samat toiminnot kuin viivytyspainanteella, mutta pienempi merkitys hulevesien laadullisessa hallinnassa.  Ei merkitystä monimuotoisuudelle ja hiilensidonnalle. Toisaalta vapauttaa tilaa kasvillisuudelle tai muulle maankäytölle maan pinnalla.",1.5,"Ei merkitystä pienilmaston tasaamiselle. Toiminnallisuutta lisää mahdollisuus muiden toimintojen sijoittamiseen kaivannon päälle.",1,"Ei merkitystä maisemalle",0,"Hoitotarve verrattavissa imeytyskaivantoon. Sis: esim. salaojajärjestelmän huuhtominen ja kiintoaineksen poisto imumenetelmällä (10)",1.5,1.4000000000000001,{"$f":"Viherkerroin!H29","v":0},null,null,null,null,null,null,null,null,null,null,null,null,null,null,null,null,null,null,null,null,null,null,null,0,0,0,0,0,null,0.3482142857142857,0.30357142857142855,0,0.3482142857142857,0.99999999999999989,null,null,null,null,null,null,null,null,null,0]
["Bonuselementit, max 1 piste/osa-alue ","Hulevesien ohjaaminen läpäisemättömiltä pinnoilta läpäisevälle kasvillisuudelle maassa","Merkitystä erityisesti hulevesien hallinnalle. Ekologisuutta lisää myös vesijohtoveden vähentäminen kastelussa.",1,"Toiminnallisuutta lisää mahdollisuus hyödyntää hulevesiä kasvillisuuden hoidossa.",0.5,"Ei merkitystä maisemalle",0,"Kunnossapitotarve riippuu rakenteesta. Vaatii todennäköisesti roskien poistoa ja vettä johtavien putkien puhdistamista 1-2 kertaa vuodessa tai useammin. (10)",0.5,{"$f":"(D30*$AW$3+F30*$AW$6+H30*$AW$9+J30*$AW$10)/4","v":0.7},{"$f":"Viherkerroin!H30","v":0},null,null,null,null,null,null,null,null,null,null,null,null,null,null,null,null,null,null,null,null,null,null,null,0,0,0,0,0,null,0.46428571428571436,0.3035714285714286,0,0.23214285714285718,1.0000000000000002,null,null,null,null,null,null,null,null,null,0]
[null,"Hulevesien ohjaaminen läpäisemättömiltä pinnoilta rakennettuihin vesiaiheisiin, kuten lampiin ja puroihin (joissa vesi vaihtuu/kiertää)","Merkitystä erityisesti hulevesien hallinnalle ja monimuotoisuudelle, mutta myös hiilensidonnalle.",1,"Mahdollisuus vesileikkeihin ja luonnosta oppimiseen. Toiminnallisuutta vähentävät turvallisuusnäkökohdat ja usein vesiaiheisiin liittyvät hyöntesiet kuten hyttyset",0.5,"Vesiaiheilla on huomattava merkitys maisemalle",1,"Arvioitu kunnossapitotarve 1-2 kertaa vuodessa tai useammin; riippuu rakennettavan vesiaiheen tyypistä. Usein vaatii roskien poistoa ja vesiaiheeseen johtavien putkien puhdistamista. (10)",0.5,0.87499999999999989,{"$f":"Viherkerroin!H31","v":0},null,null,null,null,null,null,null,null,null,null,null,null,null,null,null,null,null,null,null,null,null,null,null,0,0,0,0,0,null,0.3714285714285715,0.24285714285714288,0.2,0.18571428571428575,1,null,null,null,null,null,null,null,null,null,0]
[null,"Jalopuut ja metsähaapa, istutettava tai säilytettävä isokokoinen puu (à 25 m²)","Jalopuilla ja metsähaavalla on erittäin suuri merkitys uhanalaisten lajien säilymiselle. Ne ovat ns. avainlajeja (12), eli niiden säilyttämisestä ovat riippuvaisia lukuisat muut lajit. Jalopuista koostuvat metsiköt ovat hyvin merkittävä elinympäristö (4). Yksittäiset istutetut puut eivät luonnollisesti ole verrattavissa luonnonmetsään; esimerkiksi yksittäisten puistopuiden on kuitenkin huomattu toimivan elinympäristöinä monille harvinaisille kääville (5) ja hyönteisille. Lehtipuut myös parantavat maaperää havupuihin nähden ravinteisemmalla lehtikarikkeellaan (11).",1,"Lehtipuilla pienempi merkitys pienilmaston säätelyssä havupuihin nähden (pienempi lehtialaindeksi, lehdettömyys talvella) (11)",0.5,"Jalopuut ovat erittäin suosittuja maisemapuita Helsingissä",1,"Jalopuut usein suojattava kasvinsyöjiltä taimivaiheessa. Vakiinnuttua ei kuitenkaan suurta kunnossapidon tarvetta (Huom. Jalopuiden käytössä vältettävä yksinomaan jalavien (Ulmus) käyttöä jalavantaudin vuoksi)",1,1.0374999999999999,{"$f":"Viherkerroin!H32","v":0},null,null,null,null,null,null,null,null,null,null,null,null,null,null,null,null,null,null,null,null,null,null,null,0,0,0,0,0,null,0.31325301204819284,0.20481927710843376,0.16867469879518074,0.31325301204819284,1.0000000000000002,null,null,null,null,null,null,null,null,null,0]
[null,"Havupuut, istutettava tai säilytettävä isokokoinen puu (à 25 m²)","Havupuilla jalopuita suurempi merkitys hulevesienhallinnalle ikivihreyden ja suuremman lehtialaindeksin ansiosta (11)",0.5,"Havupuilla erittäin suuri merkitys pienilmaston säätelyssä suuren lehtialan ja ikivihreyden ansiosta - suoja melulta, tuulelta ja ilmansaasteilta",1,"Havupuiden merkitys maisemassa korostuu erityisesti talvella muun (lehdellisen) kasvillisuuspeitteen vähentyessä",1,"Vakiinnuttua ei suurta kunnossapidon tarvetta. Havupuut ovat kuitenkin usein herkempiä ilmansaasteille kuin lehtipuut (harsuuntuminen) (15)",1,1.0874999999999999,{"$f":"Viherkerroin!H33","v":0},null,null,null,null,null,null,null,null,null,null,null,null,null,null,null,null,null,null,null,null,null,null,null,0,0,0,0,0,null,0.14942528735632185,0.39080459770114945,0.16091954022988506,0.2988505747126437,1,null,null,null,null,null,null,null,null,null,0]
[null,"Havupuut, istutettava tai säilytettävä pienikokoinen puu (à 15 m²)","Havupuilla jalopuita suurempi merkitys hulevesienhallinnalle ikivihreyden ja suuremman lehtialaindeksin ansiosta (11)",0.5,"Havupuilla erittäin suuri merkitys pienilmaston säätelyssä suuren lehtialan ja ikivihreyden ansiosta - suoja melulta, tuulelta ja ilmansaasteilta",1,"Havupuiden merkitys maisemassa korostuu erityisesti talvella muun (lehdellisen) kasvillisuuspeitteen vähentyessä",1,"Vakiinnuttua ei suurta kunnossapidon tarvetta. Havupuut ovat kuitenkin usein herkempiä ilmansaasteille kuin lehtipuut (harsuuntuminen) (15)",1,1.0874999999999999,{"$f":"Viherkerroin!H34","v":0},null,null,null,null,null,null,null,null,null,null,null,null,null,null,null,null,null,null,null,null,null,null,null,0,0,0,0,0,null,0.14942528735632185,0.39080459770114945,0.16091954022988506,0.2988505747126437,1,null,null,null,null,null,null,null,null,null,0]
[null,"Varjostava isokokoinen puu (à 25 m²) rakennuksen etelä- ja lounaispuolella (erityisesti lehtipuut) ","Merkitys hulevesien hallinnalle, hiilensidonnalle ja monimuotoisuudelle.",0.5,"Varjostavat puut auringon tulosuunnassa vähentävät rakennusten viilentämistarvetta kesäisin. ",1,"Puilla on merkittävä arvo maisemassa",1,"Ei merkittävää kunnossapitotarvetta.",1,1.0874999999999999,{"$f":"Viherkerroin!H35","v":0},null,null,null,null,null,null,null,null,null,null,null,null,null,null,null,null,null,null,null,null,null,null,null,0,0,0,0,0,null,0.14942528735632185,0.39080459770114945,0.16091954022988506,0.2988505747126437,1,null,null,null,null,null,null,null,null,null,0]
[null,"Varjostava pienikokoinen puu (à 15 m²) rakennuksen etelä- ja lounaispuolella (erityisesti lehtipuut) ","Merkitys hulevesien hallinnalle, hiilensidonnalle ja monimuotoisuudelle.",0.5,"Varjostavat puut auringon tulosuunnassa vähentävät rakennusten viilentämistarvetta kesäisin. ",1,"Puilla on merkittävä arvo maisemassa",1,"Ei merkittävää kunnossapitotarvetta.",1,{"$f":"(D36*$AW$3+F36*$AW$6+H36*$AW$9+J36*$AW$10)/4","v":1.0874999999999999},{"$f":"Viherkerroin!H36","v":0},null,null,null,null,null,null,null,null,null,null,null,null,null,null,null,null,null,null,null,null,null,null,null,0,0,0,0,0,null,0.14942528735632185,0.39080459770114945,0.16091954022988506,0.2988505747126437,1,null,"Elementtikohtaiset minimivaatimukset","Täytetty","Vaadittu",true,null,null,null,null,0]
[null,"Viljelyyn soveltuvat hedelmäpuut (à 15 m²) ","Monivuotiset hedelmäpuut ovat tärkeitä monimuotoisuudelle (pölyttäminen, ravintokasvina toimiminen), hiilensidonnalle ja hulevesien hallinnalle.",1,"Merkitystä virkistyskäytölle (esim. hyötyviljelylle) ja luonnosta oppimiselle.",1,"Usein kasvukauden alussa kukkivat ja myöhemmin hedelmiä tuottavat puut ovat hyvin arvokkaita maisemalle. ",1,"Hedelmäpuut vaativat  hoitoa vähintään 2 kertaa vuodessa (lannoitus, leikkaus) minkä lisäksi ne on usein suojattava kasvinsyöjiltä.",0.5,1.0875000000000001,{"$f":"Viherkerroin!H37","v":0},null,null,null,null,null,null,null,null,null,null,null,null,null,null,null,null,null,null,null,null,null,null,null,0,0,0,0,0,null,0.29885057471264365,0.39080459770114939,0.16091954022988503,0.14942528735632182,0.99999999999999978,null,"Vähintään 1 hulevesirakenne",{"$f":"SUM(BD21:BD26)","v":0},{"$f":"IF(Rajaukset!H7=\"-\",0,1)","v":1},{"$f":"IF(AW37>=AX37,\"Kyllä\",\"Ei\")","v":"Ei"},null,null,null,null,0]
[null,"Viljelyyn soveltuvat marjapensaat (à 3 m²)","Monivuotiset marjapensaat ovat tärkeitä monimuotoisuudelle (pölyttäminen, ravintokasvina toimiminen), hiilensidonnalle ja hulevesien hallinnalle.",1,"Merkitystä virkistyskäytölle (esim. hyötyviljelylle) ja luonnosta oppimiselle.",1,"Marjoja tuottavat pensaat ovat hyvin arvokkaita maisemalle. ",1,"Marjapensaat vaativat  hoitoa vähintään 2 kertaa vuodessa (lannoitus, leikkaus) minkä lisäksi ne on usein suojattava kasvinsyöjiltä.",0.5,1.0875000000000001,{"$f":"Viherkerroin!H38","v":0},null,null,null,null,null,null,null,null,null,null,null,null,null,null,null,null,null,null,null,null,null,null,null,0,0,0,0,0,null,0.29885057471264365,0.39080459770114939,0.16091954022988503,0.14942528735632182,0.99999999999999978,null,"Vähintään 1 säilytettävä elementti",{"$f":"SUM(BD2:BD6)","v":0},{"$f":"IF(Rajaukset!H8=\"-\",0,1)","v":0},{"$f":"IF(AW38>=AX38,\"Kyllä\",\"Ei\")","v":"Kyllä"},null,null,null,null,0]
[null,"Valikoima alueella luontaisesti esiintyviä lajeja- väh. 5 lajia/100 m²","Luonnonmukainen kasvillisuus tärkeää monimuotoisuudelle, elinympäristöille ja ekologiselle verkostolle. Alueelle soveltuva kasvillisuus vähentää myös hoitotarvetta, mikä lisää ekologisuutta.",1,"Merkitys pienilmastolle ja luonnosta oppimiselle.",0.5,"Alueelle soveltuvat lajit lisäävät maisema-arvoa.",1,"Vakiinnuttua ei suurta kunnossapidon tarvetta. Alueelle soveltuva kasvillisuus vähentää merkittävästi hoitotarvetta.",1,1.0374999999999999,{"$f":"Viherkerroin!H39","v":0},null,null,null,null,null,null,null,null,null,null,null,null,null,null,null,null,null,null,null,null,null,null,null,0,0,0,0,0,null,0.31325301204819284,0.20481927710843376,0.16867469879518074,0.31325301204819284,1.0000000000000002,null,null,null,null,null,null,null,null,null,0]
[null,"Hyvinkäälle ominaiset puulajit ja kukkivat puut ja pensaat - väh. 3 lajia/100 m²","Tärkeää monimuotoisuudelle, elinympäristöille ja ekologiselle verkostolle. Alueelle soveltuva kasvillisuus vähentää myös hoitotarvetta, mikä lisää ekologisuutta.",1,"Merkitys pienilmastolle ja luonnosta oppimiselle.",0.5,"Alueelle soveltuvat lajit lisäävät maisema-arvoa. Erityisesti kukkivat lajit arvokkaita maiseman kannalta.",1,"Vakiinnuttua ei suurta kunnossapidon tarvetta. Alueelle soveltuva kasvillisuus vähentää merkittävästi hoitotarvetta.",1,1.0374999999999999,{"$f":"Viherkerroin!H40","v":0},null,null,null,null,null,null,null,null,null,null,null,null,null,null,null,null,null,null,null,null,null,null,null,0,0,0,0,0,null,0.31325301204819284,0.20481927710843376,0.16867469879518074,0.31325301204819284,1.0000000000000002,null,null,null,null,null,null,null,null,null,0]
[null,"Kosteikoille ja ranta-alueille soveltuvat, hulevesiä sitovat ja suodattavat luonnonkasvit, m2","Merkitystä erityisesti hulevesien hallinnalle ja monimuotoisuudelle, mutta myös hiilensidonnalle.",1,"Merkitys pienilmastolle ja luonnosta oppimiselle.",0.5,"Koettu maisema-arvo riippuu kasvivalinnoista. Soveltuu alueille, joissa suositaan luonnonmukaisempaa kasvillisuutta.",0.5,"Kosteikkokasvillisuus vaatii jonkin verran hoitoa monipuolisen kasvivalikoiman säilyttämiseksi, umpeenkasvun estämiseksi ja toimivuuden takaamiseksi (10)",0.5,{"$f":"(D41*$AW$3+F41*$AW$6+H41*$AW$9+J41*$AW$10)/4","v":0.78749999999999998},{"$f":"Viherkerroin!H41","v":0},null,null,null,null,null,null,null,null,null,null,null,null,null,null,null,null,null,null,null,null,null,null,null,0,0,0,0,0,null,0.41269841269841273,0.26984126984126983,0.1111111111111111,0.20634920634920637,1,null,null,null,null,null,null,null,null,null,0]
[null,"Perhosniityt","Perhosniityt koostuvat erityisesti perhosten suosimista ravintokasveista (16, 17). Tärkeää monimuotoisuudelle, elinympäristöille ja ekologiselle verkostolle. ",1,"Merkitys erityisesti luonnosta oppimiselle ja havainnoinnille.",1,"Kukkivat ja värikkäät kasvit ovat erityisen merkittäviä maisemalle.",1,"Hoito 1-2 kertaa vuodessa tai useammin, mikäli perhosniittyyn istutetaan perennakasveja.",0.5,1.0875000000000001,{"$f":"Viherkerroin!H42","v":0},null,null,null,null,null,null,null,null,null,null,null,null,null,null,null,null,null,null,null,null,null,null,null,0,0,0,0,0,null,0.29885057471264365,0.39080459770114939,0.16091954022988503,0.14942528735632182,0.99999999999999978,null,null,null,null,null,null,null,null,null,0]
[null,"Näyttävästi kukkivat/tuoksuvat istutukset","Kukkivat ja tuoksuvat kasvit ovat usein merkittäviä myös pölyttäjille (13) - merkitys monimuotoisuudelle.",0.5,"Merkitys erityisesti luonnosta oppimiselle.",1,"Kukkivat ja värikkäät kasvit ovat erityisen merkittäviä maisemalle. ",1,"Kukkivilla kasveilla usein suurempi hoitotarve.",0.5,0.92499999999999993,{"$f":"Viherkerroin!H43","v":0},null,null,null,null,null,null,null,null,null,null,null,null,null,null,null,null,null,null,null,null,null,null,null,0,0,0,0,0,null,0.17567567567567569,0.45945945945945948,0.1891891891891892,0.17567567567567569,1,null,null,null,null,null,null,null,null,null,0]
[null,"Viljelylaatikot","Viljelylaatikoiden ekologinen arvo arvioitu vastaamaan näyttävästi kukkivia ja tuoksuvia istutuksia. Viljelylaatikon merkitys hulevesilleon kuitenkin rajallinen.",0.5,"Merkitystä virkistyskäytölle (esim. hyötyviljelylle) ja luonnosta oppimiselle.",1,"Viljelylaatikot voivat tuoda monipuolisuutta maisemaan esimerkiksi kukkivien kasvien ansiosta. Viljelyn kausiluonteisuus ja mahdollinen hoitamattomuuden aiheuttama epäsiisteys vähentävät sitä.",0.5,"Viljelyyn soveltuvat alueet vaativat usein runsaasti hoitoa, mutta hoidosta vastaavat asukkaat. Taloyhtiölle todennäköisesti kunnosspitovastuu itse viljelylaatikoista.",0.5,0.83750000000000002,{"$f":"Viherkerroin!H44","v":0},null,null,null,null,null,null,null,null,null,null,null,null,null,null,null,null,null,null,null,null,null,null,null,0,0,0,0,0,null,0.19402985074626866,0.5074626865671642,0.1044776119402985,0.19402985074626866,1,null,null,null,null,null,null,null,null,null,0]
[null,"Leikkimiseen tai urheiluun osoitettu läpäisevä pinta (esim. hiekka- tai sorapintaiset leikkipaikat, urheilukenttänurmi)","Läpäisevä pinta merkittävä hulevesien hallinnalle.",0.5,"Monikäyttöiset pinnat lisäävät toiminnallisuutta.",1,"Ei merkittävää maisema-arvoa",0,"Viherpinnan kuluminen ja monikäyttöisyyden luomat vaatimukset lisäävät kunnossapidon tarvetta.",0,0.58750000000000002,{"$f":"Viherkerroin!H45","v":0},null,null,null,null,null,null,null,null,null,null,null,null,null,null,null,null,null,null,null,null,null,null,null,0,0,0,0,0,null,0.27659574468085107,0.72340425531914887,0,0,1,null,null,null,null,null,null,null,null,null,0]
[null,"Yhteiskäytössä olevat kattoterassit, joissa kasvillisuutta vähintään 10 % pinta-alasta","Mahdollinen merkitys monimuotoisuudelle ja hiilensidonnalle",0.5,"Merkitys hyötyviljelylle, yhteisöllisyydelle ja luonnosta oppimiselle",1,"Viherpinnan lisääminen luo maisema-arvoa",0.5,"Ruukuissa kasvattaminen lisää kasvien hoitotarvetta,",0,0.67500000000000004,{"$f":"Viherkerroin!H46","v":0}]
[null,"Säilytettävä kuollut maapuu/kanto  (à 5 m²)","Lahoamaan jätetty puu tarjoaa elinympäristöjä ja ravintoa suurelle osalle uhanalaisista metsälajeista. Erityisesti järeällä, jo lahonneella puulla on erittäin suuri merkitys lajiston ja elinympäristöjen monimuotoisuusdelle ja ekologiselle verkostolle (4, (6-8). ",1,"Toiminnallisuutta lisää mahdollisuus oppia luonnosta. Maapuut voivat myös toimia tilanjakajina (ohjaten kulkua esim. polkujen reunoilla) sekä leikkiympäristöinä. ",1,"Kuolleen puun maisema-arvo on hyvin subjektiivinen. Erityisesti järeää puuta voi hyödyntää (ja hyödynnetään nykyäänkin) tilanjakajana tontilla; toisaalta lahoava puu voidaan kokea epäsiistiksi erityisesti edustusympäristössä.",1,"Ei vaadi lainkaan kunnossapitoa. Lahoaminen ja hajoaminen ovat luontaista maapuulle. ",1,1.25,{"$f":"Viherkerroin!H47","v":0}]
[null,"Linnunpöntöt  (à 2 m²)","Merkitys monimuotoisuudelle ja ekologiselle verkostolle",1,"Merkitys luonnosta oppimiselle ja havainnoinnille",0.5,"Ei merkittävää maisema-arvoa",0,"Ei merkittävää kunnossapitotarvetta.",1,0.86250000000000004,{"$f":"Viherkerroin!H48","v":0}]
[]
["Lähteet (numeroituna elementtien selityksissä):"]
[1,"Aylor, Donald. \"Noise reduction by vegetation and ground.\" The Journal of the Acoustical Society of America 51 (1972): 197."]
[2,"Ferris, R., and J. W. Humphrey. \"A review of potential biodiversity indicators for application in British forests.\" Forestry 72.4 (1999): 313-328."]
[3,"Tyrväinen, Liisa. \"The amenity value of the urban forest: an application of the hedonic pricing method.\" Landscape and Urban planning 37.3 (1997): 211-222."]
[4,"Meriluoto, Markku, and Timo Soininen. Metsäluonnon arvokkaat elinympäristöt. Metsälehti kustannus, 1998."]
[5,"Peuhu, E. and Siitonen, J. 2011. \"Ontot puistopuut ovat merkittävä elinympäristö monimuotoiselle lahopuueliöstölle.\" (2011)."]
[6,"Siitonen, Juha, et al. \"Coarse woody debris and stand characteristics in mature managed and old-growth boreal mesic forests in southern Finland.\" Forest Ecology and Management 128.3 (2000): 211-225."]
[7,"Vanha-Majamaa, Ilkka, and Jyrki Jalonen. \"Green tree retention in Fennoscandian forestry.\" Scandinavian Journal of Forest Research 16.S3 (2001): 79-90."]
[8,"Rosenvald, Raul, and Asko Lohmus. \"For what, when, and where is green-tree retention better than clear-cutting? A review of the biodiversity aspects.\" Forest Ecology and Management 255.1 (2008): 1-15."]
[9,"Palmberg, Irmeli E., and Jari Kuru. \"Outdoor activities as a basis for environmental responsibility.\" The Journal of Environmental Education 31.4 (2000): 32-36."]
[10,"Kuntaliiton hulevesiopas, 2012: http://www.kunnat.net/fi/asiantuntijapalvelut/yty/hulevesien_hallinta/Sivut/default.aspx"]
[11,"Augusto, Laurent, Jacques Ranger, Dan Binkley, and Andreas Rothe. \"Impact of several common tree species of European temperate forests on soil fertility.\" Annals of Forest Science 59, no. 3 (2002): 233-253."]
[12,"Bond, W. J. \"Keystone species.\" Biodiversity and ecosystem function. Springer Berlin Heidelberg, 1993. 237-253."]
[13,"Kremen, Claire, and Richard S. Ostfeld. \"A call to ecologists: measuring, analyzing, and managing ecosystem services.\" Frontiers in Ecology and the Environment 3.10 (2005): 540-548."]
[14,"Burgess, Stephen SO, et al. \"The redistribution of soil water by tree root systems.\" Oecologia 115.3 (1998): 306-311."]
[15,"http://www.metsavastaa.net/ilmansaasteet"]
[16,"Nieminen, M. ja Sundell, P.R. 2002. Kyläjoen eritasoliittymän perhosniittyjen uhanalaisten perhoslajien elinmahdollisuuksien selvitys ja seuranta \n"]
[17,"Nieminen, M. ja Kaitila, J-P. \"Saaristomeren kansallispuiston niittyjen ja hakojen perhoset.\" Metsähallituksen luonnonsuojelujulkaisuja, Sarja A: 111. (2000)"]
[18,"Hagelberg, E., A. Karhunen, A. Kulmala, ja R. Larsson. \"Käytännön kosteikkosuunnittelu [Wetland planning in practise].\" Publications of the Teho Project 1 (2009): 2009."]

{"sheet":"Tulokset","index":4,"n_rows":16,"n_cols":7,"rows_kept":16,"cut":false,"hidden":false,"merged":[[0,1,1,2],[14,4,15,6],[6,1,6,2],[8,1,8,2],[10,1,10,2],[9,1,9,2],[11,1,11,2],[13,1,13,2],[7,1,7,2]]}
[null,"Tuloskortti"]
[null,null,null,null,"Korttelinumero",{"$f":"IF(Rajaukset!H10>0,Rajaukset!H10,\"-\")","v":"-"}]
[null,"Päivämäärä",{"$f":"Rajaukset!B3","v":"2014-12-22"},null,"Tonttinumero",{"$f":"IF(Rajaukset!H12>0,Rajaukset!H12,\"-\")","v":"-"}]
[]
[]
[null,null,null,null,"Viherkertoimeen sisällytetyt elementit"]
[null,"Viherkerroin",null,null,"Elementtityyppi","Elementtejä täytetty, kpl","Elementtityypin kokonaislukumäärä, kpl"]
[null,{"$f":"Viherkerroin!A13/Viherkerroin!A11","v":{"$error":"#DIV/0!"}},null,null,"Säilytettävä kasvillisuus",{"$f":"'Uudet elementit_painotukset'!AY15","v":0},{"$f":"'Uudet elementit_painotukset'!AZ15","v":7}]
[null,"Tavoitetaso",null,null,"Istutettava kasvillisuus",{"$f":"'Uudet elementit_painotukset'!AY16","v":0},{"$f":"'Uudet elementit_painotukset'!AZ16","v":12}]
[null,{"$f":"Rajaukset!H3","v":5},null,null,"Pinnoitteet",{"$f":"'Uudet elementit_painotukset'!AY17","v":0},{"$f":"'Uudet elementit_painotukset'!AZ17","v":2}]
[null,"Minimitaso",null,null,"Hulevesien hallintarakenteet",{"$f":"'Uudet elementit_painotukset'!AY18","v":0},{"$f":"'Uudet elementit_painotukset'!AZ18","v":7}]
[null,{"$f":"Rajaukset!H5","v":{"$error":"#DIV/0!"}},null,null,"Bonuselementit",{"$f":"'Uudet elementit_painotukset'!AY19","v":0},{"$f":"'Uudet elementit_painotukset'!AZ19","v":19}]
[null,null,null,null,"Yhteensä",{"$f":"'Uudet elementit_painotukset'!AY20","v":0},{"$f":"'Uudet elementit_painotukset'!AZ20","v":47}]
[null,"Elementtikohtaiset minimitasot täytetty",null,null,"Täyttäjän kommentit:"]
[null,"Hulevesien-hallintarakenne",{"$f":"'Uudet elementit_painotukset'!AY37","v":"Ei"}]
[null,"Säilytettävä kasvillisuus",{"$f":"'Uudet elementit_painotukset'!AY38","v":"Kyllä"}]

{"sheet":"Lisätietoa","index":5,"n_rows":68,"n_cols":17,"rows_kept":68,"cut":false,"hidden":true,"merged":[[29,0,47,0],[22,0,28,0],[5,15,7,15],[5,14,7,14],[0,2,0,3],[0,4,0,5],[0,6,0,7],[0,8,0,9],[1,0,7,0],[2,15,4,15],[2,14,4,14],[0,14,0,16],[8,0,19,0],[20,0,21,0]]}
["Elementtityypit","Elementit","Ekologisuus",null,"Toiminnallisuus",null,"Maisema-arvo",null,"Kunnossapito",null,"Painotettu keskiarvo",null,"Asteikko (Ekologisuus, toiminnallisuus, maisema-arvo - Huom. Bonuselementeillä maksimipistemäärä 1)",null,"Kyselytutkimuksesta laskettu yleinen painotus osa-alueille"]
["Säilytettävä kasvillisuus ja maaperä","Säilytettävä hyväkuntoinen isokokoinen (täysikasvuisena > 10 m) puu; vähintään 3 m (à 25 m²), säilytettävä kasvualusta 25 m²","Vakiintuneella, täysikasvuisena suuren koon saavuttavalla, puulla on erittäin suuri merkitys hulevesien hallinnalle juuriston sitoman maaveden ja latvuston varastoiman sadeveden (interseptiohaihdunnan) ansiosta (11). Lisäksi  pitkäikäisyyden ja suuren biomassan ansiosta erittäin suuri merkitys hiilensidonnalle ja -varastoinnille. Erityisesti avointa maisemaa hallitsevat, suuret yksittäiset puut ja puuryhmät ovat tärkeä luontotyyppi (4,13). Ns. säästöpuiden jättäminen on metsätaloudessa havaittu merkittäväksi keinoksi säilyttää elinympäristöjä hakkuiden välillä (6-8), huomioiden kuitenkin, että vain osa lajeista kykenee hyödyntämään niitä. Huom. Syväjuuriset, metsässä kasvaneet puut (esim. mänty) sopeutuvat paremmin yksittäispuiksi kuin pintajuuriset puut (esim. kuusi), jotka usein ränsistyvät joutuessaan erilaisiin kasvuoloihin. ",3,"Vakiintuneella, täysikasvuisena suuren koon saavuttavalla, puulla on erittäin suuri merkitys pienilmaston tasaamiselle ja puhdistamiselle sekä näkösuojana toimimiselle (etenkin, jos kyseessä havupuu)(11). Puusto voi suojata myös jonkin verran melulta (1), joskin vaikutus onkin enimmäkseen psykologinen (näkösuoja vähentää melun häiritsevyyttä). Merkittävä myös toiminnallisuuden kannalta, esim. virkistyskäyttö ja luonnosta oppiminen (9). Hyväkuntoisen puun säilyttämisessä ei ole turvallisuusriskejä, mikäli puun juuriston ja rungon suojauksesta huolehditaan rakennusvaiheessa. Huom. Syväjuuriset, metsässä kasvaneet puut (esim. mänty) sopeutuvat paremmin yksittäispuiksi kuin pintajuuriset puut (esim. kuusi), jotka usein ränsistyvät joutuessaan erilaisiin kasvuoloihin.",3,"Vakiintuneella, täysikasvuisena suuren koon saavuttavalla, puulla on erittäin suuri maisema-arvo, sillä se lieventää siirtymää rakentamattomasta maankäytöstä rakennettuun. Kaupunkimetsien on havaittu vaikuttavan positiivisesti tonttien hintoihin (3). Säilytettävä kasvillisuus on usein merkittävämpi maisemaelementti kuin istutettava kasvillisuus, jolla voi kestää useita vuosia vakiintua ja saavuttaa vastaava koko. Maisema-arvoon vaikuttaa merkittävästi säilytettävän kasvillisuuden kunto. Syväjuuriset, metsässä kasvaneet puut (esim. mänty) sopeutuvat paremmin yksittäispuiksi kuin pintajuuriset puut (esim. kuusi), jotka usein ränsistyvät joutuessaan erilaisiin kasvuoloihin.",3,"Hoitotarve kerran vuodessa tai harvemmin rakennusvaiheen suojaamisen jälkeen. Lannoitus (n. kerran vuodessa) sekä puun kunnon tarkkailu ja  vaarallisten oksien poisto  tarpeen alueilla, jossa puu voi kaatussaan aiheuttaa turvallisuusriskin. Terveydentilan heikentymisestä kertovat usein latvuston kellastuminen ja harventuminen sekä pienentyneet lehdet. Jalopuut kestävät tyypillisesti hyvin lahovikoja toisin kuin esimerkiksi koivu.",2.5,{"$f":"(D2*$P$3+F2*$P$6+H2*$P$9+J2*$P$10)/4","v":3.5874999999999999},null,"3 = Suuri merkitys",null,"Osa-alueet","Yleinen painotus (0-3)","Osa-alueisiin kuuluvat toiminnot"]
[null,"Säilytettävä hyväkuntoinen, pienikokoinen (täysikasvuisena ≤ 10 m) puu; vähintään 3 m (à 15m²), säilytettävä kasvualusta 15 m²","Vakiintuneella pienellä puulla on samat hyödyt kuin suurella puulla, mutta pienemmässä mittakaavassa. Huom. Syväjuuriset, metsässä kasvaneet puut (esim. mänty) sopeutuvat paremmin yksittäispuiksi kuin pintajuuriset puut (esim. kuusi), jotka usein ränsistyvät joutuessaan erilaisiin kasvuoloihin.",2.5,"Vakiintuneella pienellä puulla on samat hyödyt kuin suurella puulla, mutta pienemmässä mittakaavassa. Puulla voi olla merkitystä myös hyötyviljelyn kannalta, mikäli kyseessä on hedelmäpuu.  Hyväkuntoisen puun säilyttämisessä ei ole turvallisuusriskejä, mikäli puun juuriston ja rungon suojauksesta huolehditaan rakennusvaiheessa. Huom. Syväjuuriset, metsässä kasvaneet puut (esim. mänty) sopeutuvat paremmin yksittäispuiksi kuin pintajuuriset puut (esim. kuusi), jotka usein ränsistyvät joutuessaan erilaisiin kasvuoloihin.",2.5,"Vakiintuneella, täysikasvuisena pienen koon saavuttavalla, puulla on samat hyödyt maisema-arvon kannalta kuin suurella puulla. Koko arvioidaan maiseman kannalta toissijaiseksi, sillä puiden säilyttäminen on sinänsä on arvokasta. Maisema-arvoon vaikuttaa merkittävästi säilytettävän kasvillisuuden kunto sekä laji. Syväjuuriset, metsässä kasvaneet puut (esim. mänty) sopeutuvat paremmin yksittäispuiksi kuin pintajuuriset puut (esim. kuusi), jotka usein ränsistyvät joutuessaan erilaisiin kasvuoloihin.",3,"Sama hoitotarve kuin isolla säilytettävällä puulla.",2.5,{"$f":"(D3*$P$3+F3*$P$6+H3*$P$9+J3*$P$10)/4","v":3.2124999999999999},null,"2 = Kohtalainen merkitys",null,"Ekologisuus",1.3,"Hulevesien määrällinen ja laadullinen hallinta"]
[null,"Säilytettävä hyväkuntoinen puu (1,5-3 m) tai iso pensas, à 3 m², säilytettävä kasvualusta 3 m²","Samat hyödyt kuin säilytettävillä yli 3-metrisillä puilla, mutta pienemmässä mittakaavassa. Pensailla on erityistä merkitystä elinympäristönä ja suojapaikkana monille pieneläimille.",2,"Samat hyödyt toiminnallisuudelle kuin säilytettävillä yli 3-metrisillä puilla, mutta pienemmässä mittakaavassa. Pensaalla voi olla merkitystä myös hyötyviljelyn kannalta, mikäli kyseessä on esimerkiksi marjapensas. ",2,"Samat hyödyt maisema-arvon kannalta kuin säilytettävillä yli 3-metrisillä puilla, mutta pienemmässä mittakaavassa. Maisema-arvoon vaikuttaa merkittävästi säilytettävän kasvillisuuden kunto. ",2,"Hoitotarve muuten sama kuin yli 3-metrisillä säilytettävillä puilla, mutta pensailla suurempi lannoitus- ja leikkaustarve.",2,{"$f":"(D4*$P$3+F4*$P$6+H4*$P$9+J4*$P$10)/4","v":2.5},null,"1 = Vähäinen merkitys",null,null,null,"Hiilensidonta ja -varastointi"]
[null,"Säilytettävä luonnonniitty tai luonnonmukainen pohjakasvillisuus","Vakiintuneella luonnontilaisella niityllä tai pohjakasvillisuudella on samat hyödyt kuin säilytettävillä puilla ja pensailla, mutta pienemmässä mittakaavassa. Niityllä ja luonnontilaisella pohjakasvillisuudella on erityistä merkitystä ravinnonlähteenä, elinympäristönä ja suojapaikkana monille pieneläimille. Pohjakasvillisuuden säilyttäminen on usein haastavaa, sillä kasvillisuus on tottunut tiettyihin kasvuolosuhteisiin (vrt. metsäkasvillisuus).",2,"Samat hyödyt toiminnallisuudelle kuin säilytettävillä puilla ja pensailla, mutta pienemmässä mittakaavassa. ",1.5,"Säilytettävällä niityllä tai pohjakasvillisuudella on samat hyödyt maisema-arvon kannalta kuin säilytettävillä pensailla. Maisema-arvoon vaikuttaa merkittävästi säilytettävän kasvillisuuden kunto.  ",2,"Niityn niitto 1-2 kertaa vuodessa; säilytettävän pohjakasvillisuuden kunnossapitotarve vaatii lisäselvitystä.",2,{"$f":"(D5*$P$3+F5*$P$6+H5*$P$9+J5*$P$10)/4","v":2.2875000000000001},null,"0 = Ei merkitystä",null,null,null,"Lajien ja elinympäristöjen monimuotoisuus, ekologinen verkosto"]
[null,"Alueelle siirrettävä, hyväkuntoinen alkuperäinen pohjakasvillisuus ","Alueelta peräisin oleva, maantäytöstä tai muusta syystä johtuen siirrettävällä alkuperäisellä pohjakasvillisuudella on sama ekologinen hyöty kuin istutettavalla / kylvettävällä niityllä tai kedolla. Siirrettävän pohjakasvillisuuden tulee olla hyväkuntoista, ja sillä tulee ollahyvät edellytykset menestyä uudessa kasvupaikassa.",2,"Alueelta peräisin oleva, maantäytöstä tai muusta syystä johtuen siirrettävä alkuperäinen pohjakasvillisuus on verrattavissa istutettavaan / kylvettävään niittyyn tai ketoon, mikäli pohjakasvillisuuden elinvoimaisuus säilyy. Siirrettävän pohjakasvillisuuden tulee olla hyväkuntoista, ja sillä tulee ollahyvät edellytykset menestyä uudessa kasvupaikassa.",1.5,"Alueelta peräisin oleva, maantäytöstä tai muusta syystä johtuen siirrettävä alkuperäinen pohjakasvillisuus on verrattavissa istutettavaan / kylvettävään niittyyn tai ketoon, mikäli pohjakasvillisuuden elinvoimaisuus säilyy. Siirrettävän pohjakasvillisuuden tulee olla hyväkuntoista, ja sillä tulee ollahyvät edellytykset menestyä uudessa kasvupaikassa.",2,"Alueelta peräisin oleva, maantäytöstä tai muusta syystä johtuen siirrettävä alkuperäinen pohjakasvillisuus on verrattavissa istutettavaan / kylvettävään niittyyn tai ketoon. pohjakasvillisuuteen, mikäli pohjakasvillisuuden elinvoimaisuus säilyy. Siirrettävän pohjakasvillisuuden tulee olla hyväkuntoista, ja sillä tulee ollahyvät edellytykset menestyä uudessa kasvupaikassa. Alueelle siirrettävän, alkuperäisen pohjakasvillisuuden kunnossapitotarve vaatii kuitenkin lisäselvitystä, mikä vähentää pisteitä.",1,{"$f":"(D6*$P$3+F6*$P$6+H6*$P$9+J6*$P$10)/4","v":1.9625000000000001},null,"Asteikko (Kunnossapito - Huom. Bonuselementeillä maksimipistemäärä 1)",null,"Toiminnallisuus",1.7,"Pienilmaston tasaaminen ja puhdistus (viilentäminen, ilman epäpuhtauksien sidonta, melun ja tuulisuuden vähentäminen, näkösuoja)"]
[null,"Alkuperäinen vesialue, esim. kosteikko, lampi (ainakin osan vuodesta pysyvä vesipinta; muun ajan maa pysyy kosteana)","Erittäin suuri merkitys hulevesien määrälliselle ja laadulliselle hallinnalle.",3,"Mahdollisuus vesileikkeihin ja luonnosta oppimiseen. Toiminnallisuutta vähentävät turvallisuusnäkökohdat ja usein vesiaiheisiin liittyvät hyöntesiet kuten hyttyset",2.5,"Vesiaiheilla on huomattava merkitys maisemalle; kosteikkojen koettu masema-arvo jakaa mielipiteitä. ",2,"Arvioitu kunnossapitotarve 1-2 kertaa vuodessa tai useammin; riippuu rakennettavan vesiaiheen tyypistä. Usein vaatii roskien poistoa ja vesiaiheeseen johtavien putkien puhdistamista. (10)",2,3.0375000000000001,null,"3 = Hoitotarve harvemmin kuin kerran vuodessa",null,null,null,"Monikäyttöisyys, miellyttävä pienilmasto, viihtyisyys, esteettömyys"]
[null,"Säilytettävä luonnonmukainen avokallio (ainakin osittain paljas kalliopinta, vähäisesti puustoa)","Luonnontilainen kallio on erityisen tärkeä elinympäristö (4). Ekologisuudesta saatavia pisteitä vähentää läpäisemättömän pinnan negatiivinen merkitys hulevesien hallinnalle sekä hiilensidonnalle ja -varastoinnille. Kalliokasvillisuus on lisäksi erittäin herkkää kulumiselle, mikä vähentää sen ekologista arvoa, ellei kulkua rajoiteta.",1,"Toiminnallisuutta lisää mahdollisuus virkistyskäyttöön ja luonnosta oppimiseen. Toiminnallisuutta vähentää kalliokasvillisuuden herkkyys kulumiselle, mistä johtuen mahdollinen suojaus tai kulun ohjaus (esim. portailla) voi olla tarpeen eroosion rajoittamiseksi ja turvallisuuden lisäämiseksi.",2,"Avokallion maisema-arvo on huomattava. Kallion maisema-arvoa ei voi toisintaa keinotekoisesti jälkeenpäin, mistä johtuen se tulisi aina säilyttää maisemassa, kun mahdollista.",3,"Hoitotarve harvemmin kuin kerran vuodessa. Mahdollinen suojaus tai kulun ohjaus (esim. portailla) tarpeen eroosion rajoittamiseksi ja turvallisuuden lisäämiseksi.",3,2.6749999999999998,null,"2 = Hoitotarve 1-2 kertaa vuodessa",null,null,null,"Turvallisuus, esteettömyys"]
["Istutettava / kylvettävä kasvillisuus","Isokokoinen puu, täysikasvuisena > 10 m; à 25 m²; kasvualustan syvyys 0,8 m; yksittäispuun istutuskuopan mitat 2 x 2 m  ","Isokokoisella istutettavalla puulla on samat hyödyt kuin vastaavalla säilytettävällä puulla, mutta hyödyt realisoituvat usein vasta vuosien päästä. Suuri kasvulausta on merkittävä hulevesien hallinnan kannalta. Pitkäikäisten, puuvartisten kasvien merkitys hiilensidonnalle ja varastoinnille on erityisen  suuri.",2.5,"Isokokoisella istutettavalla puulla on samat hyödyt kuin vastaavalla säilytettävällä puulla, mutta hyödyt realisoituvat usein vasta vuosien päästä. Istutettavan puun hyötyjä pienilmaston säätelyssä lisää kuitenkin mahdollisuus puulajin ja istutuspaikan määrittämiseen rakennukseen nähden, mikä ei ole mahdollista säilytettävällä kasvillisuudella.",2,"Isokokoisella istutettavalla puulla on samat hyödyt kuin vastaavalla säilytettävällä puulla, mutta hyödyt realisoituvat usein vasta vuosien päästä. Istutettavan puun maisema-arvoa lisää kuitenkin mahdollisuus puulajin ja istutuspaikan määrittämiseen rakennukseen nähden, mikä ei ole mahdollista säilytettävällä kasvillisuudella.",3,"Hoitotarve 1-2 kertaa vuodessa. Lannoitus kerran vuodessa, minkä lisäksi leikkaus ja rungon suojaaminen kasvinsyöjiltä mahdollisesti tarpeen.",2,{"$f":"(D9*$P$3+F9*$P$6+H9*$P$9+J9*$P$10)/4","v":2.8374999999999999},null,"1 = Hoitotarve yli 3 kertaa vuodessa",null,"Maisema-arvo",0.7,"näyttävyys, maisemallinen merkittävyys, siisteys, värikkyys"]
[null,"Pienikokoinen puu, täysikasvuisena ≤ 10 m; à 15 m²; kasvualustan syvyys 0,6 m; yksittäispuun istutuskuopan mitat 1,5 x 1,5 m  ","Pienikokoisella istutettavalla puulla on samat hyödyt kuin istutettavalla isolla puulla, mutta pienemmässä mittakaavassa (kasvin ja kasvualustan koko).",2,"Pienikokoisella istutettavalla puulla on samat hyödyt kuin istutettavalla isolla puulla, mutta pienemmässä mittakaavassa (kasvin koko). Puulla voi olla merkitystä myös hyötyviljelyn kannalta, mikäli kyseessä on hedelmäpuu.  ",1.5,"Pienikokoisella istutettavalla puulla on samat hyödyt kuin istutettavalla isolla puulla, mutta pienemmässä mittakaavassa.",2.5,"Sama hoitotarve kuin isoilla puilla.",2,2.375,null,"0 = Hoitotarve useammin kuin kerran kuukaudessa",null,"Kunnossapito",1.3,"kestävyys, helppohoitoisuus, alhaiset hoidon kustannukset"]
[null,"Isot pensaat, à 3 m²; kasvualustan syvyys 0,6 m","Istutettavalla isokokoisella pensaalla on samat hyödyt kuin istutettavilla puilla, mutta pienemmässä mittakaavassa (kasvin ja kasvualustan koko). Pensailla on erityistä merkitystä elinympäristönä ja suojapaikkana monille pieneläimille.",1.5,"Istutettavalla isokokoisella pensaalla on samat hyödyt kuin istutettavilla puilla, mutta pienemmässä mittakaavassa (kasvin koko). Pensailla voi olla merkitystä myös hyötyviljelylle sekä tilanjakajina pihan toiminnoille.",1,"Isokokoisella istutettavalla pensaalla on samat hyödyt kuin istutettavalla pienellä puulla, mutta pienemmässä mittakaavassa (kasvin koko). Pensaat soveltuvat hyvin tilanjakajiksi pihan eri toimintojen välille.",2,"Hoitotarve jonkin verran suurempi kuin puilla. Arvioitu hoitotarve (leikkaus ja lannoitus) 2-3 kertaa vuodessa. Lisäksi rungon sekä lehvästön suojaaminen kasvinsyöjiltä mahdollisesti tarpeen.",1.5,1.7500000000000002,null,"Huom. Pisteytyksessä ei ole huomioitu kustannuksia (esim. käsityön tarvetta). "]
[null,"Muut pensaat, à 1,5 m²; kasvualustan syvyys 0,4 m","Istutettavalla pienemmällä pensaalla on samat hyödyt kuin istutettavalla suurella pensaalla, mutta pienemmässä mittakaavassa (kasvin ja kasvualustan koko). Pensailla on erityistä merkitystä elinympäristönä ja suojapaikkana monille pieneläimille.",1,"Istutettavalla pienempikokoisella pensaalla on samat hyödyt kuin isolla pensaalla. Pensailla voi olla merkitystä myös hyötyviljelylle.",1,"Pienemmällä istutettavalla pensaalla on samat hyödyt kuin isommalla. Kasvin koon lisäksi maisema-arvoon vaikuttaa kuitenkin yhtä suuressa määrin lajivalinta, minkä vuoksi hyöty arvioidaan samaksi.",2,"Sama hoitotarve kuin isommilla pensailla.",1.5,1.5875000000000001,null,"Huom. Pisteytystä vähentää puutteellinen kokemus elementin kunnossapidosta Suomessa"]
[null,"Perennat, kasvualustan syvyys 0,4-0,6 m","Istutettavilla perennoilla on samat hyödyt kuin elementillä \"Muut pensaat\", mutta niihin liittyy usein suurempi kasvualustan koko (hulevesien hallinta). Perennat tarjoavat ravintoa, elinympäristöjä ja suojapaikkoja monille pieneläimille.",1.5,"Istutettavilla perennoilla on samat hyödyt kuin pienemmilla istutettavilla pensailla.",1,"Perennoilla on vastaava maisema-arvo kuin pensailla: vaikka perennat ovat tyypillisesti pienempikokoisia, niillä on usein kestävämmät ja näyttävämmät kukinnot.",2,"Hyvin suunniteltu kasvillisuus ei vaadi hoitoa useammin kuin kerran kuukaudessa. Hoidon ja kastelun tarve vaihtelee kuitenkin huomattavasti lajin, istutuspaikan ja sateisuuden mukaan. Arvioitu hoitotarve keskimäärin yli 3 kertaa vuodessa. Lannoitus ja mahdollinen suojaaminen kasvinsyöjiltä tarpeen.",1,1.5875000000000001]
[null,"Niitty tai keto, kasvualustan syvyys 0,15-0,3 m","Niityt ja kedot (kuivat niityt) ovat luonnonmukaisempi (vähemmän hoitoa vaativa) ja monilajisempi vaihtoehto esimerkiksi perennoille. Niityn vaatima kasvualusta on kuitenkin ohuempi, mistä johtuen sen merkitys hulevesien hallinnalle on pienempi kuin perennojen. Kokonaisuudessaan samansuuruinen ekologinen merkitys. Niityllä on erityistä merkitystä monimuotoisuudelle mm. pölyttäjiä houkuttelevien kukkivien kasvien ansiosta (13).",2,"Niittyjen tarjoama hyöty pienilmastolle vastaa perennoja. Niitty voi kuitenkin tarjoata paremmat mahdollisuudet oppia luonnosta.",1,"Koettu masema-arvo jakaa mielipiteitä. Kukinta lisää niityn ja kedon maisema-arvoa; \"hallittu hoitamattomuus\" ei kuitenkaan sovellu kaikkiin maankäyttötyyppeihin.",1.5,"Vakiintumisen (niitto muutaman kerran kesässä) jälkeen vaatii hoitoa 1-2 kertaa kesässä, kuivat kedot jopa harvemmin. Niityt ja kedot vaativat vähemmän hoitoa kuin esimerkiksi perennat.",2,1.9874999999999998]
[null,"Viljelypalstat (kasvualustan syvyys riippuu viljeltävistä lajeista, vähintään 0,3 m)","Viljelypalstat koostuvat usein yksivuotisista lajeista, joten niiden ekologinen merkitys painottuu kasvukaudelle, jolloin suuri merkitys pölyttäjille ja lajien monimuotoisuudelle, ja kohtalainen merkitys hulevesien hallinnalle.  Pienempi merkitys kuin esim. perennoilla.",1,"Viljelypalstat ovat erittäin merkittäviä toiminnallisuudelle, sillä ne tarjoavat mahdollisuuden hyötyviljelyyn ja luonnosta oppimiseen.",3,"Mahdollinen kukinta, marjat ja hedelmät lisäävät maisema-arvoa ja vaihtelua; viljelyn kausiluonteisuus ja mahdollinen hoitamattomuuden aiheuttama epäsiisteys vähentävät sitä (esimerkiksi perennoihin nähden).",1.5,"Viljelyyn soveltuvat alueet vaativat usein runsaasti hoitoa, mutta hoidosta vastaavat asukkaat. Taloyhtiölle koituva kunnosspitovastuu pienempi kuin esim. nurmikolla.",2,2.5124999999999997]
[null,"Nurmikko, kasvualustan syvyys 0,15-0,2 m","Nurmikolla on merkitystä hulevesien hallinnalle ja monimuotoisuudelle, mutta pienemmässä määrin kuin esimerkiksi perennoilla (kasvin ja kasvualustan koko). Vaatii tyypillisesti säännöllistä hoitoa, minkä vuoksi ei ole niin merkittävä monimuotoisuudelle.",0.5,"Nurmikko tarjoaa hyvät mahdollisuudet leikkimiseen. Nurmikon vaikutus pienilmaston säätelyssä on kuitenkin pieni (koko).",1.5,"Hoidettu nurmikko on siisti; hoitamattomana maisema-arvo vähenee merkittävästi. Muuhun matalaan kasvillisuuteen nähden yksipuolinen elementti.",1,"Hoitotarve useammin kuin kerran kuukaudessa. Nurmikko vaatii tyypillisesti säännöllistä leikkausta ja lannoitusta, sekä kuivina kausina kastelua.",0.5,1.1375]
[null,"Viherkatot ( > 0,3 m)","Viherkatot ovat hulevesien hallinnan osalta verrattavissa nurmikon kaltaiseen matalaan kasvillisuuteen. Viherkatto yli 0,3 m syvällä kasvualustalla on kuitenkin merkittämpi hulevesien hallinnalle kuin nurmikko (0,05-0,2 m kasvualusta). Viherkatot vähentävät myös rakennusten enengiankulutusta ja tämän myötä kasvihuonekaasupäästöjä.",1.5,"Viherkatot ovat toiminnallisuuden osalta verrattavissa nurmikon kaltaiseen matalaan kasvillisuuteen. Viherkatot tarjoavat esimerkiksi mahdollisuuden hyötyviljelyyn ja vähentävät rakennusten enengiankulutusta.",1.5,"Viherkatot ovat merkittäviä maisemalle, sillä ne lisäävät vehreyttä siellä, missä normaalisti olisi läpäisemätöntä pintaa. Lisäksi viherkatot näkyvät usein pidemmälle kuin esimerkiksi matalat perennat. Monilajiset ja esimerkiksi maksaruoho(Sedum)-peitteellä varustetut viherkatot ovat myös monivärisiä ja luovat vuodenaikaisvaihtelua. Mitä paksumpi kasvualusta viherkatolla on, sitä suurempi valikoima istutettavassa kasvillisuudessa on. Arvioitu perennoja vastaava maisema-arvo.",2,"Hoitotarve yli 3 kertaa vuodessa. Vaatii vedenpoistojärjestelmien ja kasvillisuuden hoitoa sekä roskien, puuntaimien ja lumen poistoa (10). Viherkaton lisääminen jälkikäteen rakennukseen vaatii usein kantavuuden lisäämistä rakenteellisilla muutoksilla.",1,1.8]
[null,"Viherkatot (0,05 - 0,3 m)","Viherkatto 0,05 - 0,3 m kasvualustalla tarjoaa samat hyödyt ekologisuudelle kuin viherkatto > 0,3 m kasvualustalla, mutta pienemmässä mittakaavassa.",1,"Viherkatto 0,05 - 0,3 m kasvualustalla tarjoaa samat hyödyt toiminnallisuudelle kuin viherkatto > 0,3 m kasvualustalla, mutta pienemmässä mittakaavassa.",1,"Maisema-arvo sama kuin paksummalla viherkatolla, mutta pienemmässä mittakaavassa, sillä ohuemmalle kasvualustalle ei ole mahdollista istuttaa yhtä monipuolista kasvillisuutta. ",1.5,"Hoitotarve sama kuin paksummalla viherkatolla.",1,1.3374999999999999]
[null,"Monivuotiset köynnökset, kasvualustan syvyys 0,6 m, vertikaalinen pinta-ala (à 2 m²)","Monivuotiset köynnökset ovat verrattavissa ekologisuuden osalta muihin perennakasveihin. Vertikaalinen kasvutapa rajoittaa kuitenkin latvuspeittävyyden kautta hulevesien sidontakykyä. Näin ollen vertikaalisen pinta-alan lisääntyminen ei ole suotaan verrainnollinen hulevesien hallinnasta saataviin hyötyihin -> pienempi painotus kuin maata peittävillä perennoilla.",1,"Köynnökset tarjoavat samankaltaisen hyödyn pienilmastolle ja rakennusten energiankulutukselle kuin viherkatot.",1,"Köynnökset lisäävät vehreyttä siellä, missä normaalisti olisi läpäisemätöntä pintaa. Kukkivat/syysvärin saavat köynnökset tuovat väriä viherrakenteeseen. Arvioitu vähintään isokokoisia pensaita vastaava maisema-arvo",2,"Hoitotarve arvioitu vastaamaan pensaita. Tietyt köynnökset voivat rakennuksia vasten kasvaessaan vaurioittaa julkisivuja ja lisätä kunnostustarvetta.",1.5,1.5875000000000001]
[null,"Viherseinä, vertikaalinen pinta-ala","Viherseinän ekologinen arvo riippuu toteutustavasta ja sijainnista. Viherseinällä, joka ei ole kytkeytynut kasvualustaan, on pienempi merkitys hulevesien hallinnalle kuin köynnöksillä. Vaatii lisäselvitystä.",0.5,"Sama arvioitu hyöty kuin köynnöksillä.",1,"Hyvin suunnitellulla viherseinällä on sama arvioitu hyöty kuin köynnöksillä.",2,"Viherseinien toimivuudesta ei ole riittävästi kokemusta Suomessa kunnossapitotarpeen arvioimiseksi. Toimintojen säilyttämiseksi hoitotoimenpiteiden tarve voi kuitenkin olla merkittävä. Vaatii lisäselvityksiä. Lähtökohdaksi vertailuun otettu paljon hoitoa vaativa nurmikko.",0.5,1.1000000000000001]
["Pinnoitteet","Puoliläpäisevät pinnoitteet (esim. nurmikivi, kasvualusta 0,3 m)","Puoliläpäisevä pinta, jossa kuitenkin haihduttavaa ja hiiltä sitovaa kasvillisuutta, soveltuu kohtalaisesti hulevesien hallintaan (10). Kasvualusta paksumpi kuin tavallisella nurmikolla. Arvioitu ekologinen hyöty samansuuruinen kuin nurmikolla.",0.5,"Sama toiminnallisuus kuin nurmikolla pienemmällä pienilmaston säätelyvaikutuksella -> alhaisempi painotus.",1,"Puoliläpäisevä nurmikivi-pinnoite on siisti - maisema-arvoltaan verrattavissa nurmikkoon.",1,"Hoitotarve yli 3 kertaa vuodessa. Puoliläpäisevien pinnoitteiden talvikunnossapito haasteellista (10). Suuri kiintoaineen tai roskien määrä heikentää pinnoitteen läpäisevyyttä.",1,1.0874999999999999]
[null,"Läpäisevät pinnoitteet (esim. sora- ja hiekkapinnat, kivituhka)","Parempi hulevesien läpäisevyys kuin nurmikivellä, mutta vähemmän muita ekologisia hyötyjä.",0.5,"Sama toiminnallisuus kuin nurmikolla ilman pienilmaston säätelyvaikutusta -> alhaisempi painotus",1,"Läpäisevä hiekka-, sora- tai kivituhkapinta on selkeä eikä vaadi paljoa hoitoa näyttääkseen siistiltä. Viherrakenteen kannalta kuitenkin epäedullinen elementti, sillä vähentää tontin vehreyttä.",1,"Hoitotarve harvemmin kuin kerran vuodessa. ",3,1.7375]
["Hulevesien hallintarakenteet","Sadepuutarha (biosuodatusalue,ei pysyvää vesipintaa), jossa monipuolista ja kerroksellista kasvillisuutta","Hulevesienhallinnan ja lajiston monimuotoisuuden kannalta erittäin merkittävä; soveltuu hyvin hulevesien hallintaan (10). Runsaan kasvillisuuden ansiosta myös merkitystä hiilensidonnalle. Ekologisuutta lisää mahdollisuus hyödyntää hulevedet puutarhanhoidossa. Huom. Vieraslajeja ja muita aggressiivisesti leviäviä lajeja vältettävä.",2.5,"Runsaan kasvillisuuden ansiosta merkitys pienilmaston säätelylle ja luonnosta oppimiselle. Toiminnallisuutta lisää osaltaan mahdollisuus puutarhanhoitoon.",2,"Hyvin suunniteltuna sadepuutarha voi toimia edustavana maisemaelementtinä, jonka maisema-arvoa ajoittainen kuivuminen ei heikennä. Lajit tulee valita tästä lähtökohdasta.",2.5,"Hyvin suunniteltu sadepuutarha ei kärsi ajoitteisesta kuivumisesta. Kasvillisuuden ja muiden pintojen hoitotarpeeksi arvioitu 1-2 kertaa vuodessa (hoitotarve vaatii kuitenkin lisäselvitystä) (10)",1.5,2.5875000000000004]
[null,"Viivytyslammikko pysyvällä vesipinnalla, m2 (huolehdittava, että vesi vaihtuu/kiertää)","Erittäin suuri merkitys hulevesien määrälliselle ja laadulliselle hallinnalle.",3,"Mahdollisuus vesileikkeihin ja luonnosta oppimiseen. Toiminnallisuutta vähentävät turvallisuusnäkökohdat ja usein vesiaiheisiin liittyvät hyöntesiet kuten hyttyset",2.5,"Vesiaiheilla on huomattava merkitys maisemalle",2.5,"Arvioitu kunnossapitotarve 1-2 kertaa vuodessa tai useammin; riippuu rakennettavan vesiaiheen tyypistä. Usein vaatii roskien poistoa ja vesiaiheeseen johtavien putkien puhdistamista. (10)",2,3.125]
[null,"Imeytyspainanne kasvillisuus- tai kiviainespinnalla (ei pysyvää vesipintaa, läpäisevä maaperä)","Erittäin suuri merkitys hulevesien määrälliselle ja laadulliselle hallinnalle (10). Pienempi merkitys monimuotoisuudelle ja hiilensidonnalle kuin sadepuutarhalla.",2.5,"Pienempi merkitys pienilmaston tasaamisessa kuin sadepuutarhalla. Mahdollistaa suurelta osin samat toiminnot kuin nurmikko ja läpäisevät pinnoitteet.",1.5,"Maisema-arvo riippuu painanteen toteutustavasta. Tyypillisesti sora- ja nurmipeitteellä varustettu painanne verrattavissa kyseisien elementtien maisema-arvoon.",1,"Hoitotarve riippuu toteutustavasta. Nurmipinta verrattavissa nurmikkoon (0,5), kiviainespintaa hoidettava harvemmin. Keskimääräinen hoitotarve (1-2 kertaa vuodessa/ kerran kuukaudessa) = 1. Vaatii roskien ja kiintoaineksen poistoa, suodattavan kerroksen läpäisevyyden ylläpitoa, kaivon lietepesän tyhjennystä (kerran vuodessa) (10)",1,1.95]
[null,"Imeytyskaivanto (maanalainen)","Pienempi merkitys pienvesien virtaamien tasaamisessa ja eroosion ehkäisyssä kuin imeytyspainanteella. Ei merkitystä monimuotoisuudelle ja hiilensidonnalle. Toisaalta vapauttaa tilaa kasvillisuudelle tai muulle maankäytölle maan pinnalla.",2,"Ei merkitystä pienilmaston tasaamiselle. Toiminnallisuutta lisää mahdollisuus muiden toimintojen sijoittamiseen kaivannon päälle.",1,"Ei merkitystä maisemalle",0,"Hoitotarve pienempi kuin kasvillisuuspintaisella rakenteella. Vaatii roskien ja kiintoaineksen poisto, suodattavan kerroksen läpäisevyyden ylläpito, kaivon lietepesän tyhjennys (kerran vuodessa) (10)",1.5,1.5625]
[null,"Kosteikko tai tulvaniitty luonnonmukaisella kasvillisuudella (ainakin osan vuodesta pysyvä vesipinta; muun ajan maa pysyy kosteana)","Luonnonmukainen kasvillisuus tärkeää monimuotoisuudelle, elinympäristöille ja ekologiselle verkostolle. Imeytyspainannetta vastaava merkitys hulevesien hallinnalle (10). Runsaan kasvillisuuden ansiosta myös merkitystä hiilensidonnalle. Huom. Vieraslajeja ja muita aggressiivisesti leviäviä lajeja vältettävä.",3,"Runsaan kasvillisuuden ansiosta merkitys pienilmaston säätelylle sekä luonnosta oppimiselle.",2,"Koettu masema-arvo jakaa mielipiteitä. Soveltuu  väljään yhdyskuntarakenteeseen, jossa suositaan luonnonmukaisempaa kasvillisuutta.",1.5,"Kosteikkokasvillisuus vaatii jonkin verran hoitoa monipuolisen kasvivalikoiman säilyttämiseksi, umpeenkasvun estämiseksi ja toimivuuden takaamiseksi. Esim. Tasausaltaan ja purku-uomien tai -putkien puhdistamisesta  huolehdittava. Arvioitu tarve kasvillisuuden hoitoon ja rakenteiden toimivuuden varmistamiseen 1-2 kertaa vuodessa; ruoppaus 10-15 vuoden välein. (10)",2,2.7375000000000003]
[null,"Viivytyspainanne kasvillisuus- tai kiviainespinnalla (ei pysyvää vesipintaa)","Samat toiminnot kuin kosteikolla, mutta pienempi määrällinen ja laadullinen merkitys hulevesien hallinnalle. Pienempi merkitys monimuotoisuudelle sekä hiilensidonnalle.",2,"Toiminnallisuus verrattavissa imeytyspainanteeseen.",1.5,"Maisema-arvo riippuu painanteen toteutustavasta. Tyypillisesti sora- ja nurmipeitteellä varustettu painanne verrattavissa kyseisien elementtien maisema-arvoon.",1,"Hoitotarve verrattavissa imeytyspainanteeseen. Sis: kasvillisuuden tai kiviainespinnan hoito, purkuputken tai maapadon toimivuuden tarkkailu sekä\nroskien ja kiintoaineksen poisto tarvittaessa (10)",1,1.7875000000000001]
[null,"Viivytyskaivanto tai -säiliö (maanalainen)","Samat toiminnot kuin viivytyspainanteella, mutta pienempi merkitys hulevesien laadullisessa hallinnassa.  Ei merkitystä monimuotoisuudelle ja hiilensidonnalle. Toisaalta vapauttaa tilaa kasvillisuudelle tai muulle maankäytölle maan pinnalla.",1.5,"Ei merkitystä pienilmaston tasaamiselle. Toiminnallisuutta lisää mahdollisuus muiden toimintojen sijoittamiseen kaivannon päälle.",1,"Ei merkitystä maisemalle",0,"Hoitotarve verrattavissa imeytyskaivantoon. Sis: esim. salaojajärjestelmän huuhtominen ja kiintoaineksen poisto imumenetelmällä (10)",1.5,1.4000000000000001]
["Bonuselementit, max 1 piste/osa-alue ","Hulevesien kerääminen läpäisemättömiltä pinnoilta kasteluvedeksi tai ohjaaminen hallitusti läpäisevälle kasvillisuudelle maassa","Merkitystä erityisesti hulevesien hallinnalle. Ekologisuutta lisää myös vesijohtoveden vähentäminen kastelussa.",1,"Toiminnallisuutta lisää mahdollisuus hyödyntää hulevesiä kasvillisuuden hoidossa.",0.5,"Ei merkitystä maisemalle",0,"Kunnossapitotarve riippuu rakenteesta. Vaatii todennäköisesti roskien poistoa ja vettä johtavien putkien puhdistamista 1-2 kertaa vuodessa tai useammin. (10)",0.5,0.7]
[null,"Hulevesien ohjaaminen läpäisemättömiltä pinnoilta rakennettuihin vesiaiheisiin, kuten lampiin ja puroihin, joissa vesi vaihtuu/kiertää","Merkitystä erityisesti hulevesien hallinnalle ja monimuotoisuudelle, mutta myös hiilensidonnalle.",1,"Mahdollisuus vesileikkeihin ja luonnosta oppimiseen. Toiminnallisuutta vähentävät turvallisuusnäkökohdat ja usein vesiaiheisiin liittyvät hyöntesiet kuten hyttyset",0.5,"Vesiaiheilla on huomattava merkitys maisemalle",1,"Arvioitu kunnossapitotarve 1-2 kertaa vuodessa tai useammin; riippuu rakennettavan vesiaiheen tyypistä. Usein vaatii roskien poistoa ja vesiaiheeseen johtavien putkien puhdistamista. (10)",0.5,0.87499999999999989]
[null,"Jalopuut ja metsähaapa, istutettava tai säilytettävä isokokoinen puu (à 25 m²)","Jalopuilla ja metsähaavalla on erittäin suuri merkitys uhanalaisten lajien säilymiselle. Ne ovat ns. avainlajeja (12), eli niiden säilyttämisestä ovat riippuvaisia lukuisat muut lajit. Jalopuista koostuvat metsiköt ovat hyvin merkittävä elinympäristö (4). Yksittäiset istutetut puut eivät luonnollisesti ole verrattavissa luonnonmetsään; esimerkiksi yksittäisten puistopuiden on kuitenkin huomattu toimivan elinympäristöinä monille harvinaisille kääville (5) ja hyönteisille. Lehtipuut myös parantavat maaperää havupuihin nähden ravinteisemmalla lehtikarikkeellaan (11).",1,"Lehtipuilla pienempi merkitys pienilmaston säätelyssä havupuihin nähden (pienempi lehtialaindeksi, lehdettömyys talvella) (11)",0.5,"Jalopuut ovat erittäin suosittuja maisemapuita Helsingissä",1,"Jalopuut usein suojattava kasvinsyöjiltä taimivaiheessa. Vakiinnuttua ei kuitenkaan suurta kunnossapidon tarvetta (Huom. Jalopuiden käytössä vältettävä yksinomaan jalavien (Ulmus) käyttöä jalavantaudin vuoksi)",1,1.0374999999999999]
[null,"Havupuut, istutettava tai säilytettävä isokokoinen puu (à 25 m²)","Havupuilla jalopuita suurempi merkitys hulevesienhallinnalle ikivihreyden ja suuremman lehtialaindeksin ansiosta (11)",0.5,"Havupuilla erittäin suuri merkitys pienilmaston säätelyssä suuren lehtialan ja ikivihreyden ansiosta - suoja melulta, tuulelta ja ilmansaasteilta",1,"Havupuiden merkitys maisemassa korostuu erityisesti talvella muun (lehdellisen) kasvillisuuspeitteen vähentyessä",1,"Vakiinnuttua ei suurta kunnossapidon tarvetta. Havupuut ovat kuitenkin usein herkempiä ilmansaasteille kuin lehtipuut (harsuuntuminen) (15)",1,1.0874999999999999]
[null,"Havupuut, istutettava tai säilytettävä pienikokoinen puu (à 15 m²)","Havupuilla jalopuita suurempi merkitys hulevesienhallinnalle ikivihreyden ja suuremman lehtialaindeksin ansiosta (11)",0.5,"Havupuilla erittäin suuri merkitys pienilmaston säätelyssä suuren lehtialan ja ikivihreyden ansiosta - suoja melulta, tuulelta ja ilmansaasteilta",1,"Havupuiden merkitys maisemassa korostuu erityisesti talvella muun (lehdellisen) kasvillisuuspeitteen vähentyessä",1,"Vakiinnuttua ei suurta kunnossapidon tarvetta. Havupuut ovat kuitenkin usein herkempiä ilmansaasteille kuin lehtipuut (harsuuntuminen) (15)",1,1.0874999999999999]
[null,"Varjostava isokokoinen puu (à 25 m²) rakennuksen etelä- ja lounaispuolella (erityisesti lehtipuut) ","Merkitys hulevesien hallinnalle, hiilensidonnalle ja monimuotoisuudelle.",0.5,"Varjostavat puut auringon tulosuunnassa vähentävät rakennusten viilentämistarvetta kesäisin. ",1,"Puilla on merkittävä arvo maisemassa",1,"Ei merkittävää kunnossapitotarvetta.",1,1.0874999999999999]
[null,"Varjostava pienikokoinen puu (à 15 m²) rakennuksen etelä- ja lounaispuolella (erityisesti lehtipuut) ","Merkitys hulevesien hallinnalle, hiilensidonnalle ja monimuotoisuudelle.",0.5,"Varjostavat puut auringon tulosuunnassa vähentävät rakennusten viilentämistarvetta kesäisin. ",1,"Puilla on merkittävä arvo maisemassa",1,"Ei merkittävää kunnossapitotarvetta.",1,1.0874999999999999]
[null,"Viljelyyn soveltuvat hedelmäpuut (à 15 m²) ","Monivuotiset hedelmäpuut ovat tärkeitä monimuotoisuudelle (pölyttäminen, ravintokasvina toimiminen), hiilensidonnalle ja hulevesien hallinnalle.",1,"Merkitystä virkistyskäytölle (esim. hyötyviljelylle) ja luonnosta oppimiselle.",1,"Usein kasvukauden alussa kukkivat ja myöhemmin hedelmiä tuottavat puut ovat hyvin arvokkaita maisemalle. ",1,"Hedelmäpuut vaativat  hoitoa vähintään 2 kertaa vuodessa (lannoitus, leikkaus) minkä lisäksi ne on usein suojattava kasvinsyöjiltä.",0.5,1.0875000000000001]
[null,"Viljelyyn soveltuvat marjapensaat (à 3 m²)","Monivuotiset marjapensaat ovat tärkeitä monimuotoisuudelle (pölyttäminen, ravintokasvina toimiminen), hiilensidonnalle ja hulevesien hallinnalle.",1,"Merkitystä virkistyskäytölle (esim. hyötyviljelylle) ja luonnosta oppimiselle.",1,"Marjoja tuottavat pensaat ovat hyvin arvokkaita maisemalle. ",1,"Marjapensaat vaativat  hoitoa vähintään 2 kertaa vuodessa (lannoitus, leikkaus) minkä lisäksi ne on usein suojattava kasvinsyöjiltä.",0.5,1.0875000000000001]
[null,"Valikoima alueella luontaisesti esiintyviä lajeja- väh. 5 lajia/100 m²","Luonnonmukainen kasvillisuus tärkeää monimuotoisuudelle, elinympäristöille ja ekologiselle verkostolle. Alueelle soveltuva kasvillisuus vähentää myös hoitotarvetta, mikä lisää ekologisuutta.",1,"Merkitys pienilmastolle ja luonnosta oppimiselle.",0.5,"Alueelle soveltuvat lajit lisäävät maisema-arvoa.",1,"Vakiinnuttua ei suurta kunnossapidon tarvetta. Alueelle soveltuva kasvillisuus vähentää merkittävästi hoitotarvetta.",1,1.0374999999999999]
[null,"Hyvinkäälle ominaiset puulajit ja kukkivat puut ja pensaat - väh. 3 lajia/100 m²","Tärkeää monimuotoisuudelle, elinympäristöille ja ekologiselle verkostolle. Alueelle soveltuva kasvillisuus vähentää myös hoitotarvetta, mikä lisää ekologisuutta.",1,"Merkitys pienilmastolle ja luonnosta oppimiselle.",0.5,"Alueelle soveltuvat lajit lisäävät maisema-arvoa. Erityisesti kukkivat lajit arvokkaita maiseman kannalta.",1,"Vakiinnuttua ei suurta kunnossapidon tarvetta. Alueelle soveltuva kasvillisuus vähentää merkittävästi hoitotarvetta.",1,1.0374999999999999]
[null,"Kosteikoille ja ranta-alueille soveltuvat, hulevesiä sitovat ja suodattavat luonnonkasvit, m2","Merkitystä erityisesti hulevesien hallinnalle ja monimuotoisuudelle, mutta myös hiilensidonnalle.",1,"Merkitys pienilmastolle ja luonnosta oppimiselle.",0.5,"Koettu maisema-arvo riippuu kasvivalinnoista. Soveltuu alueille, joissa suositaan luonnonmukaisempaa kasvillisuutta.",0.5,"Kosteikkokasvillisuus vaatii jonkin verran hoitoa monipuolisen kasvivalikoiman säilyttämiseksi, umpeenkasvun estämiseksi ja toimivuuden takaamiseksi (10)",0.5,{"$f":"(D41*$P$3+F41*$P$6+H41*$P$9+J41*$P$10)/4","v":0.78749999999999998}]
[null,"Perhosniityt","Perhosniityt koostuvat erityisesti perhosten suosimista ravintokasveista (16, 17). Tärkeää monimuotoisuudelle, elinympäristöille ja ekologiselle verkostolle. ",1,"Merkitys erityisesti luonnosta oppimiselle ja havainnoinnille.",1,"Kukkivat ja värikkäät kasvit ovat erityisen merkittäviä maisemalle.",1,"Hoito 1-2 kertaa vuodessa tai useammin, mikäli perhosniittyyn istutetaan perennakasveja.",0.5,1.0875000000000001]
[null,"Näyttävästi kukkivat/tuoksuvat istutukset","Kukkivat ja tuoksuvat kasvit ovat usein merkittäviä myös pölyttäjille (13) - merkitys monimuotoisuudelle.",0.5,"Merkitys erityisesti luonnosta oppimiselle.",1,"Kukkivat ja värikkäät kasvit ovat erityisen merkittäviä maisemalle. ",1,"Kukkivilla kasveilla usein suurempi hoitotarve.",0.5,0.92499999999999993]
[null,"Viljelylaatikot","Viljelylaatikoiden ekologinen arvo arvioitu vastaamaan näyttävästi kukkivia ja tuoksuvia istutuksia. Viljelylaatikon merkitys hulevesilleon kuitenkin rajallinen.",0.5,"Merkitystä virkistyskäytölle (esim. hyötyviljelylle) ja luonnosta oppimiselle.",1,"Viljelylaatikot voivat tuoda monipuolisuutta maisemaan esimerkiksi kukkivien kasvien ansiosta. Viljelyn kausiluonteisuus ja mahdollinen hoitamattomuuden aiheuttama epäsiisteys vähentävät sitä.",0.5,"Viljelyyn soveltuvat alueet vaativat usein runsaasti hoitoa, mutta hoidosta vastaavat asukkaat. Taloyhtiölle todennäköisesti kunnosspitovastuu itse viljelylaatikoista.",0.5,0.83750000000000002]
[null,"Leikkimiseen tai urheiluun osoitettu läpäisevä pinta (esim. hiekka- tai sorapintaiset leikkipaikat, urheilukenttänurmi)","Läpäisevä pinta merkittävä hulevesien hallinnalle.",0.5,"Monikäyttöiset pinnat lisäävät toiminnallisuutta.",1,"Ei merkittävää maisema-arvoa",0,"Viherpinnan kuluminen ja monikäyttöisyyden luomat vaatimukset lisäävät kunnossapidon tarvetta.",0,0.58750000000000002]
[null,"Yhteiskäytössä olevat kattoterassit, joissa kasvillisuutta vähintään 10 % pinta-alasta","Mahdollinen merkitys monimuotoisuudelle ja hiilensidonnalle",0.5,"Merkitys hyötyviljelylle, yhteisöllisyydelle ja luonnosta oppimiselle",1,"Viherpinnan lisääminen luo maisema-arvoa",0.5,"Ruukuissa kasvattaminen lisää kasvien hoitotarvetta,",0,0.67500000000000004]
[null,"Säilytettävä kuollut maapuu/kanto  (à 5 m²)","Lahoamaan jätetty puu tarjoaa elinympäristöjä ja ravintoa suurelle osalle uhanalaisista metsälajeista. Erityisesti järeällä, jo lahonneella puulla on erittäin suuri merkitys lajiston ja elinympäristöjen monimuotoisuusdelle ja ekologiselle verkostolle (4, (6-8). ",1,"Toiminnallisuutta lisää mahdollisuus oppia luonnosta. Maapuut voivat myös toimia tilanjakajina (ohjaten kulkua esim. polkujen reunoilla) sekä leikkiympäristöinä. ",1,"Kuolleen puun maisema-arvo on hyvin subjektiivinen. Erityisesti järeää puuta voi hyödyntää (ja hyödynnetään nykyäänkin) tilanjakajana tontilla; toisaalta lahoava puu voidaan kokea epäsiistiksi erityisesti edustusympäristössä.",1,"Ei vaadi lainkaan kunnossapitoa. Lahoaminen ja hajoaminen ovat luontaista maapuulle. ",1,{"$f":"(D47*$P$3+F47*$P$6+H47*$P$9+J47*$P$10)/4","v":1.25}]
[null,"Linnunpöntöt  (à 2 m²)","Merkitys monimuotoisuudelle ja ekologiselle verkostolle",1,"Merkitys luonnosta oppimiselle ja havainnoinnille",0.5,"Ei merkittävää maisema-arvoa",0,"Ei merkittävää kunnossapitotarvetta.",1,{"$f":"(D48*$P$3+F48*$P$6+H48*$P$9+J48*$P$10)/4","v":0.86250000000000004}]
[]
["Lähteet (numeroituna elementtien selityksissä):"]
[1,"Aylor, Donald. \"Noise reduction by vegetation and ground.\" The Journal of the Acoustical Society of America 51 (1972): 197."]
[2,"Ferris, R., and J. W. Humphrey. \"A review of potential biodiversity indicators for application in British forests.\" Forestry 72.4 (1999): 313-328."]
[3,"Tyrväinen, Liisa. \"The amenity value of the urban forest: an application of the hedonic pricing method.\" Landscape and Urban planning 37.3 (1997): 211-222."]
[4,"Meriluoto, Markku, and Timo Soininen. Metsäluonnon arvokkaat elinympäristöt. Metsälehti kustannus, 1998."]
[5,"Peuhu, E. and Siitonen, J. 2011. \"Ontot puistopuut ovat merkittävä elinympäristö monimuotoiselle lahopuueliöstölle.\" (2011)."]
[6,"Siitonen, Juha, et al. \"Coarse woody debris and stand characteristics in mature managed and old-growth boreal mesic forests in southern Finland.\" Forest Ecology and Management 128.3 (2000): 211-225."]
[7,"Vanha-Majamaa, Ilkka, and Jyrki Jalonen. \"Green tree retention in Fennoscandian forestry.\" Scandinavian Journal of Forest Research 16.S3 (2001): 79-90."]
[8,"Rosenvald, Raul, and Asko Lohmus. \"For what, when, and where is green-tree retention better than clear-cutting? A review of the biodiversity aspects.\" Forest Ecology and Management 255.1 (2008): 1-15."]
[9,"Palmberg, Irmeli E., and Jari Kuru. \"Outdoor activities as a basis for environmental responsibility.\" The Journal of Environmental Education 31.4 (2000): 32-36."]
[10,"Kuntaliiton hulevesiopas, 2012: http://www.kunnat.net/fi/asiantuntijapalvelut/yty/hulevesien_hallinta/Sivut/default.aspx"]
[11,"Augusto, Laurent, Jacques Ranger, Dan Binkley, and Andreas Rothe. \"Impact of several common tree species of European temperate forests on soil fertility.\" Annals of Forest Science 59, no. 3 (2002): 233-253."]
[12,"Bond, W. J. \"Keystone species.\" Biodiversity and ecosystem function. Springer Berlin Heidelberg, 1993. 237-253."]
[13,"Kremen, Claire, and Richard S. Ostfeld. \"A call to ecologists: measuring, analyzing, and managing ecosystem services.\" Frontiers in Ecology and the Environment 3.10 (2005): 540-548."]
[14,"Burgess, Stephen SO, et al. \"The redistribution of soil water by tree root systems.\" Oecologia 115.3 (1998): 306-311."]
[15,"http://www.metsavastaa.net/ilmansaasteet"]
[16,"Nieminen, M. ja Sundell, P.R. 2002. Kyläjoen eritasoliittymän perhosniittyjen uhanalaisten perhoslajien elinmahdollisuuksien selvitys ja seuranta \n"]
[17,"Nieminen, M. ja Kaitila, J-P. \"Saaristomeren kansallispuiston niittyjen ja hakojen perhoset.\" Metsähallituksen luonnonsuojelujulkaisuja, Sarja A: 111. (2000)"]
[18,"Hagelberg, E., A. Karhunen, A. Kulmala, ja R. Larsson. \"Käytännön kosteikkosuunnittelu [Wetland planning in practise].\" Publications of the Teho Project 1 (2009): 2009."]